Cogmind - Beta 16 @@@ ROGUE MODE // 2025.11.08 @ 14:18:07 Player: Darcyisverycute Result: Establishing 0b11! Performance ------------- Evolutions (9) 4500 Regions Visited (30) 6000 Robots Destroyed (1031) 5155 Value Destroyed (57741) 57741 Prototype IDs (157) 3140 Alien Tech Used (8) 1600 Bonus (86509) 86509 TOTAL SCORE: 164645 Bonus ------- Triggered High Security 2500 High Alert Combat Kills 34308 Follower Combat Kills 1378 Destroyed Unchained 1000 Network Hubs Disabled 600 Met Data Miner 300 Met Zhirov 300 Built Enhanced Grunts 300 A7 Reached Mainframe 300 Met R17 at Cetus 500 Scanned by Researcher 500 Acquired SGEMP 2000 Destroyed Superfortress 15000 Delivered SGEMP 2000 Destroyed MAIN.C Guards 500 Met MAIN.C 5000 Destroyed MAIN.C Shell 5000 Destroyed MAIN.C 10000 Met Architect 300 Destroyed A8 300 Destroyed Architect 15000 Win 3000 Friendly Fire -13577 Cogmind --------- Core Integrity 240/1600 Matter 24/300 Energy 40/100 System Corruption 11% Temperature Cool (4) Movement Treading (36) Location 0b11 Command Parts ------- > --- POWER (4) -------- (None) > --- PROPULSION (10) -- Treaded Antigrav-Aerolev Exoskeleton High-density Centrium Wheel > --- UTILITY (4) ------ Large Storage Unit Experimental Targeting Computer Experimental Core Analyzer > --- WEAPON (7) ------- Hpw. Kinetic Graviton Construct/C Hvy. Thermal Linear Construct/C > --- INVENTORY (15) --- Advanced Cooling System Experimental Terrain Scanner Improved Force Booster Experimental Reaction Control System Graphene Brace Experimental Thermal Shield Mini Drone Bay (3/3) Improved Potential Cannon Ragnarok Missile Launcher Concept Rapid Grenade Launcher Peak State ------------ > --- POWER ------------ Hybrid Graviton Reactor Concept Zero-point Core Concept Zero-point Core Quantum-Antimatter Reactor > --- PROPULSION ------- Treaded Antigrav-Aerolev Exoskeleton Concept Combat Aerolev Unit > --- UTILITY ---------- Armored Scrap Engine Concept Thermoelectric Network Large Storage Unit > --- WEAPON ----------- Concept Plasma Driver Hpw. Kinetic Graviton Construct/C Sigix Broadsword > --- INVENTORY -------- Experimental Coolant Injector Concept NT7 Matterbank Experimental ECM Suite ID Mask Graphene Brace Concept Antimissile System Concept Matter Streamer Crosscalibrator Transdimensional Reconstructor Transdimensional Reconstructor Concept Rapid Grenade Launcher Concept Rapid Grenade Launcher Multitool SGEMP Prototype [Rating: 245] Favorites ----------- Power Constructs Engine Makeshift Power Source Power Core Light Nuclear Core Reactor Constructs Propulsion Constructs Treads Constructs Leg Improved Titanium Leg Wheel Subdweller Monowheel Hover Unit Concept Combat Aerolev Unit Flight Unit Q-thruster Utility Large Storage Unit Device Armored Scrap Engine Storage Large Storage Unit Processor Transport Network Coupler Hackware Advanced System Shield Protection Reflective Plating Artifact Phase Redirector Weapon Constructs Energy Gun Advanced Variable Charge Gun Energy Cannon Subdweller Beam Cannon Ballistic Gun Light Assault Rifle Ballistic Cannon Constructs Launcher Guided EMP Blaster Special Weapon Multitool Impact Weapon Great Maul Slashing Weapon Scythe Piercing Weapon Spear Build | -11 -10 -10 -8 -8 -8 -6 -6 -6 -6 -5 -5 -5 -5 -5 -5 -5 -4 -4 -4 -4 -4 -4 -3 -3 -2 -2 -2 -1 -1 -1 ------- Run | Yrd Mat Sub Mat Sto Rec Fac Low Low Dat Pro Fac Was Fac Upp Upp Zhi Pro Fac Ext Cet Arc Hub Res Qua Res Tes Frg Acc Com Ac0 Slots Evolved 18 | . . . 4 . . 4 . . . . 2 . . . . . . 2 . . . . 2 . 2 . . 2 . . Power 3 | . . . . . . 1 . . . . . . . . . . . . . . . . 1 . 1 . . . . . Propulsion 8 | . . . 2 . . 1 . . . . 1 . . . . . . 1 . . . . 1 . 1 . . 1 . . Utility 2 | . . . 1 . . 1 . . . . . . . . . . . . . . . . . . . . . . . . Weapon 5 | . . . 1 . . 1 . . . . 1 . . . . . . 1 . . . . . . . . . 1 . . Parts Attached 319 | 7 5 11 23 15 5 44 5 . . 2 18 1 15 4 6 5 4 3 8 3 3 3 7 14 5 10 45 9 28 11 Power 46 | 1 . 2 1 1 . 5 1 . . 1 1 . 2 1 1 1 1 1 2 1 . . 1 4 2 1 6 2 6 1 Engine 7 | 1 . 2 . . . 1 1 . . . . . . 1 . . 1 . . . . . . . . . . . . . Core 10 | . . . 1 1 . 2 . . . . 1 . 1 . 1 1 . . . . . . . . . . 2 . . . Reactor 29 | . . . . . . 2 . . . 1 . . 1 . . . . 1 2 1 . . 1 4 2 1 4 2 6 1 Propulsion 54 | 2 . 2 5 9 1 13 . . . . 2 . 1 1 . . . 1 . . 1 . 1 2 . 3 1 . 6 3 Treads 30 | 2 . 1 3 7 1 6 . . . . . . . . . . . . . . 1 . . 1 . 1 . . 6 1 Leg 8 | . . . . . . 4 . . . . 1 . 1 1 . . . . . . . . . . . . . . . 1 Wheel 4 | . . 1 2 . . . . . . . . . . . . . . . . . . . . . . . . . . 1 Hover 5 | . . . . . . 1 . . . . . . . . . . . 1 . . . . . . . 2 1 . . . Flight 7 | . . . . 2 . 2 . . . . 1 . . . . . . . . . . . 1 1 . . . . . . Utility 132 | 2 1 2 8 2 1 19 1 . . . 10 1 8 2 4 3 2 . 4 . 1 3 1 4 2 3 25 4 12 7 Device 87 | 1 . 1 6 1 1 10 . . . . 5 1 5 2 3 1 1 . 3 . 1 2 1 3 2 3 21 2 8 3 Storage 13 | 1 1 . . . . 3 1 . . . 1 . 1 . . 1 . . . . . . . . . . 2 . 2 . Processor 14 | . . . 1 . . 3 . . . . 2 . . . . . . . . . . . . . . . 1 1 2 4 Hackware 11 | . . . . . . 2 . . . . 2 . 2 . 1 . 1 . 1 . . 1 . . . . . 1 . . Protection 6 | . . 1 1 1 . 1 . . . . . . . . . 1 . . . . . . . . . . 1 . . . Artifact 1 | . . . . . . . . . . . . . . . . . . . . . . . . 1 . . . . . . Weapon 87 | 2 4 5 9 3 3 7 3 . . 1 5 . 4 . 1 1 1 1 2 2 1 . 4 4 1 3 13 3 4 . Energy Gun 9 | . . . . . . 1 . . . . . . 1 . 1 . . . . 1 . . . . . . 4 1 . . Energy Cannon 19 | . . 3 2 1 1 2 1 . . . 1 . . . . 1 . . . . . . 1 . . 2 3 . 1 . Ballistic Gun 17 | 2 . 2 3 . . . 1 . . . 1 . . . . . 1 . . 1 1 . 1 2 . . 1 1 . . Ballistic Cannon 7 | . 1 . . . . . . . . . 1 . 1 . . . . . . . . . . . 1 . 1 . 2 . Launcher 14 | . 2 . . . 1 1 . . . . 2 . . . . . . . . . . . 1 . . 1 4 1 1 . Special Weapon 2 | . . . 1 1 . . . . . . . . . . . . . . . . . . . . . . . . . . Impact Weapon 4 | . 1 . . . . . . . . . . . 1 . . . . 1 . . . . . 1 . . . . . . Slashing Weapon 14 | . . . 3 1 1 3 1 . . . . . 1 . . . . . 2 . . . 1 1 . . . . . . Piercing Weapon 1 | . . . . . . . . . . 1 . . . . . . . . . . . . . . . . . . . . Special Melee Weapon . | . . . . . . . . . . . . . . . . . . . . . . . . . . . . . . . Unidentified Prototypes 111 | . . . . 3 1 9 . . . . 5 . 5 . 1 3 . . . 1 . 2 3 6 . 10 41 2 12 7 Parts Lost 67 | . . 2 3 5 1 5 . . . 2 . . 7 1 3 . . 1 . . . . . 2 . 3 2 . 9 21 Power 17 | . . . 1 1 . 1 . . . . . . 2 1 1 . . . . . . . . 2 . 1 . . 3 4 Propulsion 17 | . . 2 1 3 . 1 . . . . . . 1 . . . . . . . . . . . . . . . . 9 Utility 8 | . . . 1 1 . . . . . . . . . . . . . . . . . . . . . 1 1 . 1 3 Weapon 25 | . . . . . 1 3 . . . 2 . . 4 . 2 . . 1 . . . . . . . 1 1 . 5 5 Highest Loss Streak 17 | . . 2 2 5 1 1 . . . 1 . . 2 1 3 . . 1 . . . . . 1 . 1 1 . 4 17 To Critical Strikes 12 | . . . . . . . . . . . . . . . 1 . . . . . . . . . . . . . . 11 Average Backups 12 | 2 10 12 11 12 12 12 12 13 13 13 12 12 12 12 12 12 13 13 13 13 13 13 13 14 15 13 12 14 12 13 Power . | . 1 . . . . 2 2 2 2 2 1 . . . . . . . . . 1 . . . . . . . . . Propulsion 1 | 1 2 2 1 6 6 1 . . . . . . . . . . . . . . . . . . . . . . 1 . Utility 6 | . 2 3 3 1 1 5 6 7 7 7 7 10 9 10 10 10 11 10 10 10 10 9 9 9 8 7 8 9 7 8 Weapon 2 | . 4 5 6 2 2 2 2 2 2 2 2 1 . . . 1 . . . . . . 1 1 2 1 1 2 3 3 Tool/Special . | . . . . . . . . . . . . . . . . . . . . . . . . . . . . . . . Unused Backups 79 | . . 13 2 1 10 19 1 . . . 5 . 3 . . . 1 . . . 1 . 2 2 . . 2 . 13 4 Power 5 | . . . . . . 2 . . . . . . 1 . . . . . . . . . . . . . . . 2 . Propulsion 25 | . . 4 . . 9 11 . . . . . . 1 . . . . . . . . . . . . . . . . . Utility 28 | . . 2 1 . . 3 . . . . 4 . 1 . . . 1 . . . 1 . 1 1 . . 2 . 8 3 Weapon 20 | . . 7 1 1 1 3 1 . . . 1 . . . . . . . . . . . 1 . . . . . 3 1 Tool/Special 1 | . . . . . . . . . . . . . . . . . . . . . . . . 1 . . . . . . Average Slot Usage (%) 54 | . 99 98 81 97 70 55 50 60 56 59 52 51 52 44 45 44 45 45 51 48 52 56 46 50 50 47 46 51 34 43 Engine 1 | . 14 14 3 . . 1 2 6 6 2 . . . 2 4 2 2 . . . . . . . . . . . . . Core 3 | . . . 5 8 8 8 6 6 6 6 5 5 6 . 4 8 5 5 4 . . . . . . . 7 8 . . Reactor 4 | . . . . . . 1 . . . 3 5 4 3 1 . . . 3 4 10 10 10 9 11 15 16 9 7 8 8 Treads 7 | . 28 27 12 34 16 3 . 1 . 3 . 5 2 1 . . . . . 5 5 10 1 4 8 4 1 . 4 11 Hover 1 | . . . . . . 2 . . . . 2 . 1 . . . . 4 7 . . . 1 . . 1 3 8 2 . Device 9 | . 13 12 11 11 11 12 12 13 13 13 9 11 9 11 11 6 8 5 8 9 10 7 9 8 8 7 7 6 8 5 Storage 5 | . 14 13 8 9 9 5 6 6 6 6 5 5 5 5 5 5 5 5 5 5 5 5 4 4 4 3 4 4 2 4 Energy Cannon 4 | . . 9 7 3 8 6 12 6 6 6 2 . . . . 3 4 5 3 . 1 5 3 4 4 2 2 3 2 . Ballistic Gun 2 | . 22 16 8 . . . . 5 3 5 1 . . . 1 . . . . 1 4 8 5 3 2 . . . . . Ballistic Cannon 2 | . . . . . 1 . . . . . 3 5 7 . . 1 . . 1 5 3 . . . 1 1 3 4 5 8 Slashing Weapon 2 | . . . 6 22 6 4 1 6 6 3 . . 2 5 1 . . . 6 8 1 . 2 3 4 3 3 3 . . Peak Build Rating 245 | 7 10 18 26 30 49 98 80 80 80 87 105 110 116 91 93 102 105 116 123 132 141 144 150 188 202 218 245 244 244 226 Average Rating 115 | 5 8 13 20 26 39 75 74 79 77 82 95 105 100 80 78 81 98 107 114 118 129 136 133 161 192 204 211 240 189 214 On Entrance 103 | . 7 10 15 25 29 48 72 76 80 80 87 105 110 72 86 84 102 100 105 104 132 141 141 132 182 200 199 221 236 226 Avg Prop Armor Cover (%) 6 | . . . 9 . . 5 . . . . 1 . 3 . . . . . . . 3 3 3 5 5 3 . . 9 10 Naked Turns . | . . . . . . . . . . . . . . . . . . . . . . . . . . . . . . . Heaviest Build 232 | 12 32 37 54 42 41 69 67 62 62 68 79 72 77 52 65 66 86 71 79 86 88 88 108 113 136 136 140 147 232 164 Greatest Support 429 | 40 40 40 60 83 90 129 64 113 113 151 151 129 129 128 128 128 143 143 182 265 265 138 138 269 199 288 429 373 373 209 Greatest Overweight (x) 4 | . . 1 4 . 1 1 1 . . . . . 1 1 . . . . . . . . . . . 1 . . 1 . Average Overweight (x) . | . . . . . . . . . . . . . . . . . . . . . . . . . . . . . . . Largest Inventory Capacity 25 | 8 15 15 15 15 15 15 15 15 15 15 15 15 15 15 15 15 15 15 15 15 15 15 15 15 15 15 15 15 25 15 Average Capacity 14 | 7 13 14 14 15 15 14 15 15 15 15 15 15 15 15 15 15 15 15 15 15 15 15 15 15 15 14 15 15 14 15 Most Carried 25 | 6 15 15 15 15 15 15 15 15 15 15 15 15 15 15 15 15 15 15 15 15 15 15 15 15 15 15 15 15 25 15 Average Carried 13 | 3 10 14 14 14 13 14 14 15 15 15 14 14 14 13 14 13 14 14 14 14 14 14 14 14 15 14 14 14 12 14 Final Capacity 15 | 8 15 15 15 15 15 15 15 15 15 15 15 15 15 15 15 15 15 15 15 15 15 15 15 15 15 15 15 15 15 15 Final Carried 15 | 6 15 15 15 15 15 14 15 15 15 15 15 14 15 14 15 15 15 15 15 15 15 15 15 15 15 15 15 15 15 11 Scrap Engine Consumption 617 | . . . . . 57 81 8 4 . 4 22 5 32 16 41 13 19 5 15 10 2 4 12 7 7 19 37 . 197 . Constructs Created 10 | . . . . . 3 1 . . . . 1 . 1 1 2 . . . . . . . . . . . . . 1 . Constructs Modified 269 | . . . . . 19 35 3 1 . 2 9 2 11 7 17 3 11 . 8 1 3 . 7 3 1 12 13 1 100 . Class Distribution -------------------- 37% | Construct 30% | Generator-Construct 9% | Commander-Construct 9% | Mutant 4% | Scavenger-Mutant Dominant Class ---------------- Mutant | -10/Materials Mutant | -10/Subcaves Scavenger-Mutant | -8/Materials Scavenger-Mutant | -8/Storage Commander-Construct | -8/Recycling Construct | -6/Factory Construct | -6/Lower Caves Construct | -6/Lower Caves Construct | -6/Data Miner Construct | -5/Proximity Caves Construct | -5/Factory Construct | -5/Waste Construct | -5/Factory Construct | -5/Upper Caves Construct | -5/Upper Caves Construct | -5/Zhirov Construct | -4/Proximity Caves Construct | -4/Factory Commander-Construct | -4/Extension Commander-Construct | -4/Cetus Commander-Construct | -4/Archives Commander-Construct | -4/Hub_04(d) Construct | -3/Research Construct | -3/Quarantine Generator-Construct | -2/Research Generator-Construct | -2/Testing Generator-Construct | -2/Protoforge Generator-Construct | -1/Access Generator-Construct | -1/Command Generator-Executioner | -1/Access_0 Resources | -11 -10 -10 -8 -8 -8 -6 -6 -6 -6 -5 -5 -5 -5 -5 -5 -5 -4 -4 -4 -4 -4 -4 -3 -3 -2 -2 -2 -1 -1 -1 ----------- Run | Yrd Mat Sub Mat Sto Rec Fac Low Low Dat Pro Fac Was Fac Upp Upp Zhi Pro Fac Ext Cet Arc Hub Res Qua Res Tes Frg Acc Com Ac0 Matter Collected 21893 | 282 143 668 626 199 341 1069 92 125 . 267 1494 82 1107 305 1221 532 963 232 1417 156 440 272 808 1086 353 888 2236 297 3389 803 Remotely 94 | . . . . . . . . . . . . . . . . . . . . . . . . . . . 94 . . . Salvage Created 71261 | 113 266 557 907 673 1488 11173 . 199 . 404 3013 273 4307 828 1518 532 2184 498 3928 314 454 737 716 1101 423 4072 19466 6914 4176 27 Parts 2747 | 12 24 33 39 37 53 319 . 3 . 16 176 4 193 21 53 22 95 18 108 11 35 31 30 43 27 87 826 288 143 . Haulers Intercepted 14 | . 1 . . . . 7 . . . . 1 . 2 . 1 . . . . . . . . . . 1 . 1 . . Recyclers Shooed 21 | . . . 2 1 . 10 . . . . 1 . 4 . . . . 1 1 . . . . . . 1 . . . . Parts Field Recycled . | . . . . . . . . . . . . . . . . . . . . . . . . . . . . . . . Retrieved Matter . | . . . . . . . . . . . . . . . . . . . . . . . . . . . . . . . Parts Self-Destructed 87 | . . 12 . . . . . . . 11 . . . 1 20 9 34 . . . . . . . . . . . . . Prevented 92 | . . . . . . . . . . 1 . . . 13 32 . 46 . . . . . . . . . . . . . Parts Restored 3 | . . . . 1 . . . . . . . . . . . . . . . . . . . . . . 2 . . . Broken 1 | . . . . 1 . . . . . . . . . . . . . . . . . . . . . . . . . . Faulty 2 | . . . . . . . . . . . . . . . . . . . . . . . . . . . 2 . . . Kills | -11 -10 -10 -8 -8 -8 -6 -6 -6 -6 -5 -5 -5 -5 -5 -5 -5 -4 -4 -4 -4 -4 -4 -3 -3 -2 -2 -2 -1 -1 -1 ------- Run | Yrd Mat Sub Mat Sto Rec Fac Low Low Dat Pro Fac Was Fac Upp Upp Zhi Pro Fac Ext Cet Arc Hub Res Qua Res Tes Frg Acc Com Ac0 Combat Hostiles Destroyed 801 | . 8 13 12 13 9 92 . 4 . 15 39 1 65 7 24 . 36 7 41 4 1 9 6 12 4 42 227 70 39 1 Melee 32 | . 2 . 3 12 1 2 . . . . . . 3 2 1 . . . 1 . . . . 2 1 1 1 . . . Guns 22 | . 1 4 1 . . . . . . 1 . . . 2 10 . . . . . . 2 1 . . . . . . . Cannons 511 | . . 6 8 1 6 52 . . . 4 12 1 33 . . . 13 3 28 4 1 6 5 9 3 19 210 62 24 1 AOE 138 | . 5 2 . . . 3 . 4 . 9 20 . 24 1 11 . 17 2 . . . 1 . . . 4 13 7 15 . Classes Destroyed 36 | 2 6 3 3 . 2 7 . . . . . 1 . . . . 2 . 1 . . . . . 1 3 4 1 . . Worker 66 | . 2 . 1 . . 40 . . . . 7 . 12 . . . . . 2 . . . . . 1 . . . 1 . Builder 45 | . 1 . . 1 . 21 . . . . 10 . 5 . . . . . 2 . . 1 1 . 1 1 . 1 . . Tunneler 15 | 2 2 . 1 . . 7 . . . . 1 . 1 . . . . . . . . . . . 1 . . . . . Hauler 15 | . 1 . . . 1 7 . . . . 1 . 2 . 1 . . . . . . . . . . 1 . 1 . . Recycler 39 | 1 . . 2 1 1 19 . . . . 3 . 6 . . . . . 1 . . . 1 1 . 2 . . 1 . Carrier 1 | . . . . . . . . . . . . . . . . . . . . . . . . . . . . 1 . . Minesweeper 1 | . . . . . . . . . . . . . . . . . 1 . . . . . . . . . . . . . Mechanic 20 | . . . 1 . . 3 . . . . . . 3 . . . . . . . . . . . . . 8 5 . . Operator 17 | . . . . . . 1 . . . . 2 . . . . . . . . . 9 1 . 1 1 . 1 1 . . Drone 1 | . . . . . . . . . . . . . . . . . . . . . . . . . . . 1 . . . Watcher 21 | . 2 . 1 . . 4 . . . . 1 . 2 . . . . . 1 . . . 1 2 1 1 2 2 1 . Swarmer 73 | . 3 6 . 3 . 3 . 4 . 6 4 . 12 . 11 . 15 . . . . . . . . 3 3 . . . Cutter 4 | . . . . . . . . . . . . . . . . . . . . . . . . . 1 . . . 3 . Saboteur 26 | . . . . . . 2 . . . . . . 3 . . . . . . . . . . . . . 14 7 . . Grunt 296 | . 5 . 8 5 1 43 . . . 6 17 . 21 6 11 . 18 3 20 . . 2 . 4 . 19 65 30 12 . Brawler 33 | . . . . . 2 7 . . . . 2 . 2 1 . . . . . . . . . . . . 8 9 2 . Duelist 31 | . . . . . . 4 . . . . . . . . 1 . . 1 . . . . . 1 . 4 13 5 2 . Protector 15 | . . . . . . 3 . . . . . . . . . . . . . . . . . . . 1 9 1 1 . Researcher 1 | . . . . . . . . . . . . . . . . . . . . . . . . . . . 1 . . . Sentry 70 | . . . 3 5 1 3 . . . 1 6 . 3 . 1 . 2 3 11 . 1 3 2 . 1 3 16 3 2 . Demolisher 3 | . . . . . . . . . . . . . . . . . . . 1 . . . . . . . . . 2 . Specialist 12 | . . . . . . 2 . . . . . . 5 . . . . . . . . . . . . . 2 . 3 . Hunter 58 | . . . 1 . . 11 . . . 1 5 . 6 . . . . . 6 . . . 2 2 . 2 14 5 3 . Programmer 99 | . . . . . 2 12 . . . 1 5 . 13 . . . 1 . . . . 2 2 4 1 7 44 3 2 . Heavy 1 | . . . . . . 1 . . . . . . . . . . . . . . . . . . . . . . . . Behemoth 6 | . . . . . . 1 . . . . . . . . . . . . 1 . . . . . 1 . 1 2 . . Compactor 1 | . . . . . . . . . . . . 1 . . . . . . . . . . . . . . . . . . Cetus Guard 4 | . . . . . . . . . . . . . . . . . . . . 4 . . . . . . . . . . M Guard 2 | . . . . . . . . . . . . . . . . . . . . . . . . . . . . . 2 . Lightning 2 | . . . . . . . . . . . . . . . . . . . . . . 2 . . . . . . . . Hotshot 5 | . . . . . . . . . . . . . . . . . . . . . . . . . . . 5 . . . Decapitator 4 | . . . . . . . . . . . . . . . . . . . . . . . . . . . 4 . . . Immortal 4 | . . . . . . . . . . . . . . . . . . . . . . . . . . . 4 . . . Overlord 1 | . . . . . . . . . . . . . . . . . . . . . . . . . . . 1 . . . Combat Programmer 1 | . . . . . . . . . . . . . . . . . . . . . . . . . . . . . 1 . Investigator 6 | . . . . . . . . . . . . . . . . . . . . . . . . . . . 4 2 . . Striker 10 | . . . . . . . . . . . . . . . . . . . . . . . . . . 1 7 2 . . Executioner 14 | . . . . . . . . . . . . . . . . . . . . . . . . . . . 9 3 2 . Alpha 7 3 | . . . . . . . . . . . . . . . . . . . . . . . . . . 1 2 . . . Fortress 1 | . . . . . . . . . . . . . . . . . . . . . . . . . . 1 . . . . V-Series 6 | . . . . . . . . . . . . . . . . . . . . . . . . . . . 6 . . . Artisan 2 | . . 2 . . . . . . . . . . . . . . . . . . . . . . . . . . . . Cobbler 1 | . . 1 . . . . . . . . . . . . . . . . . . . . . . . . . . . . Subdweller 12 | . . 7 . . 5 . . . . . . . . . . . . . . . . . . . . . . . . . Packrat 1 | . . . . . . . . . . . . . . 1 . . . . . . . . . . . . . . . . Samaritan 1 | . . . . . . . . . . . . . . . . . 1 . . . . . . . . . . . . . Thug 1 | . . . . . . . . . . . . . . . . . . . 1 . . . . . . . . . . . Savage 1 | . . . . . . . . . . . . . . . . . . . 1 . . . . . . . . . . . Butcher 2 | . . . . . . . . . . . . . . . . . . . 2 . . . . . . . . . . . Best Kill Streak 60 | 3 8 3 2 5 2 41 . 4 . 13 24 1 20 3 5 . 8 4 10 3 7 5 3 4 4 10 60 16 17 1 Combat Bots Only 58 | . 3 3 2 5 2 8 . 4 . 13 9 1 10 3 5 . 8 4 10 3 1 5 2 4 1 8 58 13 17 1 Max Kills in Single Turn 9 | 1 6 2 1 1 1 2 . 2 . 4 8 1 5 1 2 . 2 1 1 1 1 1 1 1 1 2 4 3 9 1 Gunslinging . | . . . . . . . . . . . . . . . . . . . . . . . . . . . . . . . Exploded 8 | . 3 2 . . . 2 . 2 . 4 3 . 4 1 2 . 2 1 . . . 1 . . . 1 2 3 8 . Melee 1 | . 1 . 1 1 1 1 . . . . . . 1 1 1 . . . 1 . . . . 1 1 1 1 . . . Uniques/NPCs Destroyed 8 | . . . . . . . . . . . . . . . . . . . . . . . . 1 . . 1 3 2 1 DW-4LL (-3/Quarantine) Superfortress (-2/Protoforge) Svarog (-1/Access) Perun (-1/Access) Zhirov (-1/Access) MAIN.C Shell (-1/Command) MAIN.C (-1/Command) A8 (-1/Access_0) Combat | -11 -10 -10 -8 -8 -8 -6 -6 -6 -6 -5 -5 -5 -5 -5 -5 -5 -4 -4 -4 -4 -4 -4 -3 -3 -2 -2 -2 -1 -1 -1 -------- Run | Yrd Mat Sub Mat Sto Rec Fac Low Low Dat Pro Fac Was Fac Upp Upp Zhi Pro Fac Ext Cet Arc Hub Res Qua Res Tes Frg Acc Com Ac0 Hostile Shots Fired 3798 | . 27 67 50 125 9 338 . 12 . 108 73 2 386 41 78 . 72 26 131 14 6 25 80 118 21 177 644 160 311 697 Missed 1296 | . 7 15 13 29 3 120 . 6 . 40 23 . 143 13 22 . 30 10 42 1 3 9 30 39 7 66 249 59 95 222 Intercepted 5 | . . . . . . . . . . . . . . . . . . . . . . . . . . . . . 5 . Hits 2502 | . 20 52 37 96 6 218 . 6 . 68 50 2 243 28 56 . 42 16 89 13 3 16 50 79 14 111 395 101 216 475 Melee 102 | . . . . . . 9 . . . . . 2 3 . 13 . . . . . . . . . 3 13 13 . 4 42 Projectile 2400 | . 20 52 37 96 6 209 . 6 . 68 50 . 240 28 43 . 42 16 89 13 3 16 50 79 11 98 382 101 212 433 AOE 30 | . . 1 . . . . . . . . . . 1 . . . . . . . . 1 . . . . 5 2 20 . Critical Strikes 203 | . 2 . 4 4 . 6 . . . 1 3 2 12 1 5 . . 1 6 1 . 1 1 5 3 12 29 5 14 85 Actively Blocked 8 | . . . . . . . . . . . . . . . . . . . . . . . . 1 1 . 5 . 1 . Part Disruptions 10 | . . . . . . 1 . . . . . . . . . . . . . . . . . . . . . . 9 . Damage Taken 47981 | . 257 738 585 1302 124 3889 . 90 . 1148 978 69 4988 475 1226 . 626 308 1740 178 34 341 1083 1470 278 1658 6251 1257 4828 12060 Core 4356 | . 46 106 98 237 20 451 . 16 . 71 127 . 434 38 46 . 67 11 234 36 . 47 190 . 12 143 283 60 438 1145 Absorbed by Shields 15150 | . . . . . . 30 . . . . . . . . . . 196 83 446 187 37 212 86 . 175 1411 4483 1112 4019 2673 Reduced by Siege Mode 219 | . . . . . . . . . . . . . . . . . . . . . . . . . 5 . . . . 214 Redirected to Shielding 107 | . . . . . . . . . . . . . . . . . . . . . . . . . . . 107 . . . Ignored by Resistances 139 | . . . . 66 . 13 . . . . . . . 60 . . . . . . . . . . . . . . . . Regen/Repaired (Parts) 20163 | . . . . . 5 1550 108 . . 387 1091 96 1511 893 1049 49 506 . 1128 265 147 200 482 827 85 1677 4110 919 3078 . Core Remaining (%) 52 | 100 . 39 . . 35 . . . . 36 . . . . . . 28 . . . . 71 . 85 . . 63 . . 15 Volleys Fired 2337 | 4 25 45 40 4 13 376 . 5 . 25 134 22 144 27 94 49 96 27 103 29 54 31 72 37 11 75 361 137 234 63 Largest 5 | 2 2 2 3 1 3 2 . 1 . 2 3 1 2 1 2 2 1 2 1 1 3 4 4 2 2 2 2 5 4 2 Hottest 410 | 40 66 110 190 35 121 185 . 40 . 154 277 154 148 74 107 83 64 94 64 64 179 206 244 91 193 81 186 410 338 201 Shots Fired 2758 | 8 49 73 115 4 24 374 1 6 . 30 142 22 147 27 96 50 96 32 103 29 61 57 90 50 18 93 374 142 358 87 Gun 347 | 8 41 36 72 . . . . 2 . 6 4 . . 17 53 . . . . . 7 26 24 15 7 18 . 1 10 . Cannon 2038 | . . 36 43 4 20 369 1 . . 17 70 22 107 . . 3 42 21 103 29 32 31 63 35 11 75 363 139 315 87 Launcher 287 | . 8 1 . . 3 3 . 4 . 7 68 . 40 10 43 . 54 5 . . . . 3 . . . 11 2 25 . Special 86 | . . . . . 1 2 . . . . . . . . . 47 . 6 . . 22 . . . . . . . 8 . Kinetic 1322 | 8 41 36 72 . 3 48 . 6 . 13 59 16 103 . 24 3 41 . 28 29 36 20 19 1 . 11 258 137 283 27 Thermal 799 | . . 36 43 4 14 184 1 . . 8 15 . . 17 29 47 . 6 . . 25 37 68 35 11 2 105 3 49 60 Explosive 74 | . 8 1 . . . 3 . . . . 5 . 16 . . . . . . . . . 3 . . . 11 2 25 . Electromagnetic 462 | . . . . . 7 139 . . . 9 63 6 28 10 43 . 55 26 75 . . . . . . . . . 1 . Impact 101 | . . . . . . . . . . . . . . . . . . . . . . . . 14 7 80 . . . . Robot Hit Streak 41 | 5 7 9 9 3 18 20 . . . 7 8 10 16 6 11 20 10 13 12 7 8 6 7 7 7 19 41 9 32 10 Robot Miss Streak 13 | . 2 5 4 . 1 11 . 4 . 4 3 2 8 1 4 2 3 3 8 3 9 3 2 5 7 12 13 8 6 4 Penetration Max 2 | . . . . . . . . . . . . . 1 . 1 . . . . 1 1 . . . . . 2 1 1 . Secondary Targets . | . . . . . . . . . . . . . . . . . . . . . . . . . . . . . . . Shots Hit Robots 1973 | 5 37 46 77 35 56 374 . 4 . 18 65 18 114 21 44 41 28 6 69 20 33 33 29 46 16 98 232 117 264 27 Core Hits 1805 | 4 24 19 29 13 21 394 . 7 . 36 94 3 200 16 55 28 62 10 33 9 16 18 11 21 12 69 323 103 166 9 Critical Kills 8 | . 1 1 . . 1 . . . . . . . . . . . . . . . . . 2 1 . 1 1 . . . Critical Parts Destroyed 14 | . 1 1 . . . . . . . . 1 . 1 . . . . . . . . 1 . 1 1 5 2 . . . Critical Strikes 66 | . 2 3 1 5 2 . . . . . 2 . 1 . 3 . . . . . . 1 3 2 1 11 12 8 9 . Burn 3 | . . . . . . . . . . . . . . . 2 . . . . . . . . . . . . . 1 . Meltdown 2 | . . 1 . . 1 . . . . . . . . . . . . . . . . . . . . . . . . . Destroy 22 | . . . . . . . . . . . 1 . . . . . . . . . . 1 3 2 1 6 8 . . . Blast 20 | . . . . . . . . . . . . . . . . . . . . . . . . . . . 4 8 8 . Smash 5 | . 2 2 . . . . . . . . . . 1 . . . . . . . . . . . . . . . . . Sever 13 | . . . 1 5 1 . . . . . . . . . 1 . . . . . . . . . . 5 . . . . Impale 1 | . . . . . . . . . . . 1 . . . . . . . . . . . . . . . . . . . Melee Attacks 425 | . 15 19 10 61 40 81 . 4 . 8 32 . 41 15 6 . . . 5 . . . 5 23 14 28 1 . 17 . Kinetic 1 | . . . . . . . . . . . . . . . . . . . . . . . . 1 . . . . . . Impact 47 | . 15 19 . . . . . . . . . . 8 . . . . . 5 . . . . . . . . . . . Slashing 341 | . . . 10 61 40 81 . 4 . 4 . . 33 15 6 . . . . . . . 5 22 14 28 1 . 17 . Piercing 36 | . . . . . . . . . . 4 32 . . . . . . . . . . . . . . . . . . . Sneak Attacks 50 | . . . 1 3 9 10 . . . . 6 . 11 1 . . . . 4 . . . 1 . 2 1 . . 1 . Combat Hostiles 2 | . . . . . 1 . . . . . . . 1 . . . . . . . . . . . . . . . . . Follow-up Attacks 9 | . . . 3 6 . . . . . . . . . . . . . . . . . . . . . . . . . . Damage Inflicted 257426 | 60 1288 1318 1749 1180 2683 17351 . 497 . 1908 8216 1065 12354 1593 2566 468 3821 972 7893 1360 2140 2152 3053 3141 2002 20631 92567 28726 29332 5340 Guns 5713 | 60 254 268 552 . . . . . . 63 51 . . 317 907 . . . . . 197 434 140 724 394 1121 . . 231 . Cannons 205747 | . . 385 871 30 442 16178 . . . 529 2857 1065 4375 . . 201 1611 538 7306 1360 1782 1451 2669 1917 872 16448 87017 27003 23571 5269 Explosions 33373 | . 681 139 . . 109 233 . 275 . 1316 4827 . 6750 472 1399 . 2210 434 287 . 109 259 67 84 . 1181 5550 1723 5268 . Melee 12036 | . 353 526 313 1150 2132 936 . 222 . . 481 . 1196 784 254 . . . 300 . . . 128 416 702 1881 . . 262 . Ramming 234 | . . . 13 . . . . . . . . . 33 20 6 . . . . . . 8 49 . 34 . . . . 71 Kinetic 138236 | 60 254 268 552 . 109 2287 . 275 . 1379 2478 1040 4171 . 483 201 1520 . 2223 1360 1890 351 295 29 . 715 65198 26926 21742 2430 Thermal 51995 | . . 385 871 30 329 6876 . . . 236 1862 . 613 317 517 267 115 . 101 . 250 1793 2514 2001 872 1181 24406 1176 2444 2839 Explosive 15356 | . 681 139 . . . 233 . . . . 1166 . 4289 . . . . 310 . . . . 67 . . . 2963 624 4884 . Electromagnetic 21626 | . . . . . 113 7019 . . . 293 2229 25 2052 472 1306 . 2186 662 5269 . . . . . . . . . . . Impact 19520 | . 353 526 . . . . . . . . . . 398 . . . . . 300 . . . . 695 394 16854 . . . . Slashing 9978 | . . . 313 1150 2132 936 . 222 . . . . 798 784 254 . . . . . . . 128 416 702 1881 . . 262 . Piercing 481 | . . . . . . . . . . . 481 . . . . . . . . . . . . . . . . . . . Highest Corruption 35 | . . . . . . 4 4 4 4 5 . . 9 9 . . 1 . 1 1 1 2 2 4 1 1 35 . 15 11 Average Corruption 5 | . . . . . . 2 4 4 4 4 . . 3 4 . . 1 . 1 1 1 1 1 2 1 1 9 . 14 6 Corruption Purged 34 | . . . . . . 5 . . . . . . . 9 . . . . . . 1 . . 2 . . 2 . 15 . Corruption Blocked . | . . . . . . . . . . . . . . . . . . . . . . . . . . . . . . . Effects 406 | . . . . . . 50 11 12 2 13 . . 20 4 . . 12 . 1 2 3 4 7 10 . 15 57 . 165 18 Message Errors 87 | . . . . . . 9 3 1 . 3 . . 3 1 . . 7 . . . 1 1 . 2 . 5 13 . 34 4 Matter Fused 100 | . . . . . . 11 4 2 1 2 . . 4 2 . . 2 . . . 1 1 3 2 . 3 13 . 48 1 Heat Flow Errors 44 | . . . . . . 6 . 2 . 2 . . 2 . . . 1 . . 2 . . 1 . . . 4 . 20 4 Energy Discharges 48 | . . . . . . 5 1 3 . 1 . . 3 1 . . 1 . . . . 1 3 4 . 4 7 . 11 3 Parts Rejected 7 | . . . . . . . . . . . . . 1 . . . . . . . . . . . . 1 2 . 1 2 Parts Fused 2 | . . . . . . . . . . . . . . . . . . . . . . . . . . . 1 . 1 . Data Loss (minor) 46 | . . . . . . 6 1 1 1 3 . . 4 . . . . . . . 1 1 . . . . 6 . 21 1 Data Loss (major) 26 | . . . . . . 6 1 2 . 1 . . . . . . 1 . 1 . . . . 1 . 1 3 . 8 1 Misfires 12 | . . . . . . . 1 1 . 1 . . 1 . . . . . . . . . . 1 . . 1 . 6 . Alerts 10 | . . . . . . 2 . . . . . . 1 . . . . . . . . . . . . 1 1 . 5 . Misdirections 1 | . . . . . . . . . . . . . . . . . . . . . . . . . . . . . 1 . Weapon Failures 23 | . . . . . . 5 . . . . . . 1 . . . . . . . . . . . . . 6 . 9 2 Overload Shots 8 | . . . . . . . . . . . . . . . . . . . . . . . 7 . 1 . . . . . Effects 1 | . . . . . . . . . . . . . . . . . . . . . . . 1 . . . . . . . Heat Surge 1 | . . . . . . . . . . . . . . . . . . . . . . . 1 . . . . . . . Overflow Damage 26435 | . 58 66 32 63 401 400 . 45 . 7 439 . 659 206 9 3 167 34 1274 14 325 142 800 197 282 3080 12249 2805 1627 1051 Projectiles 22952 | . . . 9 . 23 193 . . . . 106 . 43 . . 3 132 34 1157 14 320 96 690 184 22 2634 11993 2768 1480 1051 Explosions 1229 | . 10 20 . . . 53 . 15 . 7 225 . 263 . . . 35 . 66 . 5 46 38 . . 51 256 37 102 . Melee 2254 | . 48 46 23 63 378 154 . 30 . . 108 . 353 206 9 . . . 51 . . . 72 13 260 395 . . 45 . Knockbacks 557 | . 2 2 . . . 16 . . . . 19 . 49 . . . 7 . 8 1 6 . 1 4 . 69 200 94 61 18 Impact 72 | . 2 2 . . . . . . . . . . 1 . . . . . 1 . . . 1 4 . 60 . . . 1 Kinetic 408 | . . . . . . 14 . . . . 19 . 41 . . . 7 . 7 1 6 . . . . 3 159 80 57 14 Secondary 77 | . . . . . . 2 . . . . . . 7 . . . . . . . . . . . . 6 41 14 4 3 Self-Inflicted Damage 989 | . . 24 6 . . 143 . . . . 7 . 39 . . . . 54 37 . . 72 58 36 . 199 240 . 74 . Shots 21 | . . 1 . . . 2 . . . . 1 . 2 . . . . 1 1 . . 1 1 1 . 3 4 . 3 . Rammed 7 | 1 . . 1 . . . . . . . . . 2 . . . . . . . . 1 . . . . . . . 2 Targets Rammed 15 | 1 . . 1 . . . . . . . . . 3 3 2 . . . . . . 1 1 . 1 . . . . 2 Kicked 6 | . . . . . . . . . . . . . . 3 2 . . . . . . . 1 . . . . . . . Crushed 2 | . . . . . . . . . . . . . 1 . . . . . . . . . . . 1 . . . . . Highest Temperature 700 | . 18 45 614 15 18 347 28 171 . 312 472 485 404 214 41 12 204 34 700 207 119 184 386 93 359 180 159 297 523 162 Average Temperature 84 | . 8 14 131 7 12 68 21 84 . 101 124 131 154 108 15 12 27 19 62 59 36 49 80 21 88 35 42 35 105 40 Received Heat Transfer 7191 | . 177 114 351 549 36 750 . . . 210 144 . 792 261 180 . 77 60 989 . 4 16 67 . 232 191 740 103 210 938 Effects 26 | . . . 7 . . 1 . . . . 4 2 1 1 . . . . 3 . . . 2 . 1 . . . 4 . Shutdowns 10 | . . . 1 . . . . . . . 2 1 1 . . . . . 2 . . . 1 . . . . . 2 . Energy Bleed 1 | . . . 1 . . . . . . . . . . . . . . . . . . . . . . . . . . . Interference 6 | . . . 3 . . 1 . . . . 1 . . 1 . . . . . . . . . . . . . . . . Matter Decay 5 | . . . 1 . . . . . . . 1 1 . . . . . . . . . . . . 1 . . . 1 . Short Circuit 1 | . . . . . . . . . . . . . . . . . . . . . . . . . . . . . 1 . Damage (minor) 3 | . . . 1 . . . . . . . . . . . . . . . 1 . . . 1 . . . . . . . Siege Activations 2 | . . . . . . . . . . . . . . . . . . . . . . . . . 1 . . . . 1 Total Turns 40 | . . . . . . . . . . . . . . . . . . . . . . . . . 13 . . . . 27 Longest Duration 27 | . . . . . . . . . . . . . . . . . . . . . . . . . 13 . . . . 27 Martial Activations 1 | . . . . . . 1 . . . . . . . . . . . . . . . . . . . . . . . . Total Turns 2 | . . . . . . 2 . . . . . . . . . . . . . . . . . . . . . . . . Longest Duration 2 | . . . . . . 2 . . . . . . . . . . . . . . . . . . . . . . . . Shielding Activations . | . . . . . . . . . . . . . . . . . . . . . . . . . . . . . . . Robots Disrupted 1 | . . . . . . . . . . . . . 1 . . . . . . . . . . . . . . . . . Combat Hostiles . | . . . . . . . . . . . . . . . . . . . . . . . . . . . . . . . Robots Corrupted 93 | . . 2 . . . 24 . . . 1 7 . 6 2 2 . 6 2 16 . . . . 1 . 19 3 1 1 . Combat Hostiles 77 | . . 2 . . . 16 . . . 1 7 . 5 2 2 . 6 2 11 . . . . . . 18 3 1 1 . Parts Fried 242 | . . 1 . . 1 75 . . . . 13 . 14 2 6 . 15 9 52 . . . . 3 . 41 5 4 1 . Impact Corruptions 148 | . 2 4 . . . . . . . . . . 7 . . . . . 1 . . . 1 5 . 98 23 6 1 . Robots Melted 32 | . . 1 . . 2 29 . . . . . . . . . . . . . . . . . . . . . . . . Combat Hostiles 22 | . . 1 . . 2 19 . . . . . . . . . . . . . . . . . . . . . . . . Parts Melted 198 | . . 4 4 . 2 180 . . . 2 3 . . . 2 . . . . . . . . . . . 1 . . . Heat Transferred 35644 | . . 518 1184 50 500 23879 . . . 274 1500 . 600 . 1062 639 250 . 50 . 411 311 111 50 . 749 1937 512 676 381 Parts Sabotaged 10 | . . . . . . 5 . . . . . . 1 . . . . . . . . . . . . . 2 . 2 . Parts Stolen . | . . . . . . . . . . . . . . . . . . . . . . . . . . . . . . . Parts Stripped 9 | . . . . . . . . . . . . . . . . . . . . . . . . 9 . . . . . . Power Chain Reactions 52 | . . . . . . . . . . . 6 . 6 1 2 . 3 . 2 . 2 2 . 1 . 8 11 5 3 . Alert | -11 -10 -10 -8 -8 -8 -6 -6 -6 -6 -5 -5 -5 -5 -5 -5 -5 -4 -4 -4 -4 -4 -4 -3 -3 -2 -2 -2 -1 -1 -1 ------- Run | Yrd Mat Sub Mat Sto Rec Fac Low Low Dat Pro Fac Was Fac Upp Upp Zhi Pro Fac Ext Cet Arc Hub Res Qua Res Tes Frg Acc Com Ac0 Maximum Alert Level 5 | . 1 . . . . 5 . . . . 5 2 5 . . . . 2 4 4 2 1 1 1 . 5 5 5 5 . Low Security (%) 30 | 100 94 . 100 100 100 15 . . . . 52 . . . . . . . . . . 40 78 56 100 14 . . . . Level 1 7 | . 5 . . . . 21 . . . . 12 . 9 . . . . . 10 . 1 59 21 43 . 8 . . . . Level 2 10 | . . . . . . 15 . . . . 13 100 21 . . . . 100 63 . 98 . . . . 21 . . . . Level 3 5 | . . . . . . 16 . . . . 3 . 9 . . . . . 16 98 . . . . . 7 22 . . . Level 4 4 | . . . . . . 14 . . . . 6 . 7 . . . . . 9 1 . . . . . 26 5 . . . Level 5 32 | . . . . . . 12 . . . . 11 . 28 . . . . . . . . . . . . 21 3 1 95 . High Security 9 | . . . . . . 5 . . . . . . 23 . . . . . . . . . . . . . 68 98 4 . Max Security . | . . . . . . . . . . . . . . . . . . . . . . . . . . . . . . . Peak Influence 8635 | 15 252 . 129 167 94 2581 . . . . 1979 690 3058 . . . . 687 1477 1100 599 353 270 304 175 1702 8635 8088 6495 . Initial 5180 | . . . 7 43 55 254 . . . . 151 690 441 . . . . 471 332 817 412 137 164 . 135 98 936 5180 5176 . Average 1169 | 2 30 . 48 40 18 857 . . . . 495 662 1540 . . . . 457 663 980 492 246 109 143 130 904 3779 7045 6033 . Influence Increases 34652 | 15 366 160 405 423 499 3557 . 100 . 470 2507 10 3165 375 945 15 1330 448 1777 413 322 719 504 658 238 2144 8113 2948 1752 274 Destroy 0b10 Robot/C 16080 | . 160 120 240 260 80 1820 . 80 . 300 780 . 1300 140 480 . 720 140 960 160 80 260 120 220 80 820 4460 1480 820 . Destroy 0b10 Robot/NC 1500 | 15 40 . 30 10 90 535 . 10 . . 125 . 155 5 15 15 10 . 65 10 45 15 15 20 25 35 110 65 40 . Destroy Leader 2376 | . 46 10 62 70 . 422 . 10 . 20 194 . 218 20 30 . 60 40 76 . . 70 32 34 22 94 524 210 112 . Allied During Kill 1181 | . . . . . 34 23 . . . . . . . . . . . . 531 170 115 156 . . . . 44 108 . . Successful Hack 679 | . 14 . 29 . 13 115 . . . . 101 . 32 . . . . 52 15 15 . 5 79 100 30 58 21 . . . Select Force Hacks 250 | . . . . . 150 . . . . . . . . . . . . . . . . 100 . . . . . . . . Disable Machine 2235 | . 45 . 15 60 15 105 . . . . 360 . 345 . . . . 90 15 . 30 45 45 150 . 225 330 135 105 120 Anti-Garrison Action 150 | . . . . . . . . . . . . . . . . . . . . . . . . . . . 150 . . . Destroy Structure 6351 | . 46 . 14 8 27 122 . . . . 602 10 350 . . . . 126 100 58 52 68 168 74 51 687 2264 890 495 139 Advance Influence 250 | . . . . . . 250 . . . . . . . . . . . . . . . . . . . . . . . . Partial Spotted 210 | . . . . . 15 . . . . . 60 . 30 . . . . . . . . . 15 . 15 . . . 60 15 Lose Combat Pursuer 3390 | . 15 30 15 15 75 165 . . . 150 285 . 735 210 420 . 540 . 15 . . . 30 60 15 225 210 60 120 . Influence Decreases 34588 | 15 126 385 316 384 631 987 1162 468 1051 230 773 1354 757 1621 1012 1740 582 517 995 844 960 797 818 418 303 655 1142 3495 3292 6758 Entered New Map 23427 | . . 116 8 61 88 7 956 270 1051 . 89 1284 189 1125 342 1725 . 277 347 644 618 255 150 . 105 77 728 3455 2912 6548 Time Decay 9085 | 15 126 249 278 273 533 770 206 198 . 210 587 70 478 486 640 15 582 230 518 160 342 222 409 388 198 538 294 . 70 . Lost Part 670 | . . 20 30 50 10 50 . . . 20 . . 70 10 30 . . 10 . . . . . 20 . 30 20 . 90 210 Lost Ally 1060 | . . . . . . 160 . . . . 10 . 20 . . . . . 130 40 . 320 . 10 . 10 100 40 220 . Purge Threat 346 | . . . . . . . . . . . 87 . . . . . . . . . . . 259 . . . . . . . Squads Dispatched 253 | . 1 . 2 3 . 36 . . . 1 13 . 36 . . . 1 1 5 . . 7 3 4 4 14 50 62 10 . Investigation 17 | . . . . . . . . . . 1 4 . 3 . . . 1 . . . . 4 1 1 1 1 . . . . Extermination 26 | . . . . . . 10 . . . . 3 . 3 . . . . 1 . . . 1 1 2 1 3 1 . . . Reinforcement 37 | . 1 . 2 2 . 8 . . . . 4 . 4 . . . . . 3 . . 2 1 1 2 3 1 1 2 . Assault 166 | . . . . . . 17 . . . . 1 . 26 . . . . . 2 . . . . . . 7 47 58 8 . Garrison 7 | . . . . 1 . 1 . . . . 1 . . . . . . . . . . . . . . . 1 3 . . Intercept . | . . . . . . . . . . . . . . . . . . . . . . . . . . . . . . . Searches Triggered . | . . . . . . . . . . . . . . . . . . . . . . . . . . . . . . . Unchained Authorized 1 | . . . . . . . . . . . . . . . . . . . . . . . . 1 . . . . . . Data Miner Redirects 7 | . . . . . . . . . . . . . 3 . . . . . 1 . . . . . 1 2 . . . . Construction Impeded 11 | . . . 1 . . 2 . . . . 1 . 3 . . . . . 2 . . . . . 1 1 . . . . Haulers Reinforced 3 | . . . . . . 2 . . . . . . . . . . . . . . . . . . . 1 . . . . Active Scanning Responses . | . . . . . . . . . . . . . . . . . . . . . . . . . . . . . . . Cargo Convoy Interrupts 2 | . . . . . . 1 . . . . . . 1 . . . . . . . . . . . . . . . . . Stealth | -11 -10 -10 -8 -8 -8 -6 -6 -6 -6 -5 -5 -5 -5 -5 -5 -5 -4 -4 -4 -4 -4 -4 -3 -3 -2 -2 -2 -1 -1 -1 --------- Run | Yrd Mat Sub Mat Sto Rec Fac Low Low Dat Pro Fac Was Fac Upp Upp Zhi Pro Fac Ext Cet Arc Hub Res Qua Res Tes Frg Acc Com Ac0 Distress Signals 62 | . 2 . 1 2 . 3 . . . . 4 . 9 . 1 . . . 3 2 . 1 3 1 2 7 2 2 17 . Communications Jammed 20 | . . . . . . 4 . . . . . . 2 . . . . . 14 . . . . . . . . . . . Distress Signals 20 | . . . . . . 4 . . . . . . 2 . . . . . 14 . . . . . . . . . . . Times Spotted 1222 | . 19 16 21 18 13 158 . 4 . 26 45 11 130 9 23 . 37 8 52 11 38 20 17 23 18 59 273 88 53 32 Peak Tracking Total 23 | . 4 6 4 6 2 11 . 4 . 13 6 5 16 4 7 . 7 4 5 5 2 7 4 5 11 8 15 7 16 23 Tactical Retreats 131 | . 1 1 1 1 6 8 . . . 4 10 2 18 4 13 . 18 . 3 . . . 2 2 2 10 7 3 10 5 ECM-based Alert Blocks 29 | . . . . . . . . . . . . . 7 . 3 . 3 . 4 . . . 1 . 8 . . . 3 . ID Masks Used 1 | . . . . . . . . . . . . . . . . . . . . . . . . . . . . 1 . . Traps | -11 -10 -10 -8 -8 -8 -6 -6 -6 -6 -5 -5 -5 -5 -5 -5 -5 -4 -4 -4 -4 -4 -4 -3 -3 -2 -2 -2 -1 -1 -1 ------- Run | Yrd Mat Sub Mat Sto Rec Fac Low Low Dat Pro Fac Was Fac Upp Upp Zhi Pro Fac Ext Cet Arc Hub Res Qua Res Tes Frg Acc Com Ac0 Traps Triggered 29 | . . 1 . 1 . . . . . . 1 . 2 . . . . . 2 . . . 1 . . 1 8 . 12 . Indirectly 2 | . . . . . . . . . . . . . 2 . . . . . . . . . . . . . . . . . Trap Hack Attempts . | . . . . . . . . . . . . . . . . . . . . . . . . . . . . . . . Triggered . | . . . . . . . . . . . . . . . . . . . . . . . . . . . . . . . Disarmed . | . . . . . . . . . . . . . . . . . . . . . . . . . . . . . . . Reprogrammed . | . . . . . . . . . . . . . . . . . . . . . . . . . . . . . . . Reused 1 | . . 1 . . . . . . . . . . . . . . . . . . . . . . . . . . . . Traps Extracted . | . . . . . . . . . . . . . . . . . . . . . . . . . . . . . . . Installed 4 | . . 1 . . . . . . . . . . . . . . . . . . . 3 . . . . . . . . Triggered . | . . . . . . . . . . . . . . . . . . . . . . . . . . . . . . . Most Traps Carried 3 | . . 1 . . . . . . . . . . . . . . 3 3 3 3 3 3 . . . . . . . . Machines | -11 -10 -10 -8 -8 -8 -6 -6 -6 -6 -5 -5 -5 -5 -5 -5 -5 -4 -4 -4 -4 -4 -4 -3 -3 -2 -2 -2 -1 -1 -1 ---------- Run | Yrd Mat Sub Mat Sto Rec Fac Low Low Dat Pro Fac Was Fac Upp Upp Zhi Pro Fac Ext Cet Arc Hub Res Qua Res Tes Frg Acc Com Ac0 Machines Disabled 182 | . 3 1 1 4 1 7 . . . 3 24 . 23 . 2 1 4 6 1 1 2 3 3 11 . 17 38 9 9 8 Max in Single Turn 7 | . 1 1 1 1 1 2 . . . 1 7 . 5 . 1 1 1 2 1 . 1 2 1 3 . 3 2 2 1 1 Garrison Access 9 | . . . . . . 1 . . . . 2 . 1 . . . . . . . . . 2 1 . 1 1 . . . Network Hub 3 | . . . . . . . . . . . . . . . . . . . . . . 3 . . . . . . . . Machines Repaired . | . . . . . . . . . . . . . . . . . . . . . . . . . . . . . . . Machines Dismantled 4 | . . . . 2 . . . . . . 2 . . . . . . . . . . . . . . . . . . . Machines Sabotaged 2 | . . . . . . . . . . . . . . . . . . . . . . 2 . . . . . . . . Overloaded Fab Kills . | . . . . . . . . . . . . . . . . . . . . . . . . . . . . . . . Hacking | -11 -10 -10 -8 -8 -8 -6 -6 -6 -6 -5 -5 -5 -5 -5 -5 -5 -4 -4 -4 -4 -4 -4 -3 -3 -2 -2 -2 -1 -1 -1 --------- Run | Yrd Mat Sub Mat Sto Rec Fac Low Low Dat Pro Fac Was Fac Upp Upp Zhi Pro Fac Ext Cet Arc Hub Res Qua Res Tes Frg Acc Com Ac0 Machines Accessed 144 | . 4 2 4 5 13 21 . 2 4 1 17 . 6 . 1 4 2 4 4 2 . 5 10 15 4 8 5 . . 1 Terminals 75 | . 4 . 4 5 6 7 . . . 1 7 . 1 . 1 . 1 2 4 2 . 5 6 11 1 4 3 . . . Fabricators 11 | . . . . . . 2 . . . . 3 . 3 . . . . . . . . . 1 . 1 1 . . . . Repair Stations 7 | . . . . . . 2 . . . . 2 . . . . . . . . . . . . 1 . 2 . . . . Recycling Units 17 | . . . . . 5 7 . . . . 2 . 1 . . . . 1 . . . . . . 1 . . . . . Scanalyzers 7 | . . . . . . 1 . . . . 1 . . . . . . . . . . . . 2 1 . 2 . . . Garrison Access 11 | . . . . . . 2 . . . . 2 . 1 . . . . 1 . . . . 3 1 . 1 . . . . Total Hacks 488 | . 13 6 10 8 33 51 . 4 29 3 48 . 18 . 5 17 9 7 5 6 . 20 47 67 21 23 21 . . 17 Successful 323 | . 7 6 5 4 26 32 . 4 29 3 32 . 12 . 5 17 9 4 4 4 . 10 31 26 16 10 10 . . 17 Failed 162 | . 6 . 5 3 7 18 . . . . 16 . 6 . . . . 3 1 2 . 10 15 41 5 13 11 . . . Catastrophic 29 | . . . 2 1 1 5 . . . . . . 1 . . . . 2 . . . . 3 6 . 4 4 . . . Database Lockouts 3 | . . . . 1 . 1 . . . . . . . . . . . . . . . . 1 . . . . . . . Manual 255 | . 13 . 10 7 22 27 . . . . 29 . 6 . . . . 5 5 1 . 20 32 33 14 9 21 . 1 . Terminals 232 | . 13 . 10 8 14 7 . . . 3 21 . 1 . 5 . 8 5 5 6 . 20 31 48 5 9 13 . . . Fabricators 42 | . . . . . . 6 . . . . 9 . 11 . . . . . . . . . 6 . 5 5 . . . . Repair Stations 15 | . . . . . . 3 . . . . 3 . . . . . . . . . . . . 2 . 7 . . . . Recycling Units 47 | . . . . . 6 19 . . . . 10 . 4 . . . . 1 . . . . . . 7 . . . . . Scanalyzers 40 | . . . . . . 12 . . . . 2 . . . . . . . . . . . . 14 4 . 8 . . . Garrison Access 25 | . . . . . . 4 . . . . 3 . 2 . . . . 1 . . . . 10 3 . 2 . . . . Terminal Hacks 141 | . 1 6 . 2 14 1 . 4 29 3 6 . . . 5 17 9 1 1 4 . . 9 10 1 . 1 . . 17 Record 72 | . . 5 . . 11 . . 3 11 3 . . . . 5 5 9 . . 3 . . . . . . . . . 17 Part Schematic 19 | . 1 . . 1 . . . . 11 . 2 . . . . 4 . . . . . . . . . . . . . . Robot Schematic 4 | . . . . . . . . . 4 . . . . . . . . . . . . . . . . . . . . . Robot Analysis 11 | . . . . . 1 . . . . . . . . . . 4 . . . . . . 2 3 1 . . . . . Prototype ID Bank 14 | . . . . . . 1 . . 3 . 1 . . . . 4 . 1 . . . . . 4 . . . . . . Open Door 3 | . . . . 1 . . . 1 . . . . . . . . . . . 1 . . . . . . . . . . Terminal Index 2 | . . . . . . . . . . . . . . . . . . . . . . . . 1 . . 1 . . . Fabricator Index 1 | . . . . . . . . . . . . . . . . . . . . . . . . 1 . . . . . . Alert Level 2 | . . . . . . . . . . . 1 . . . . . . . . . . . 1 . . . . . . . Unreport Threat 4 | . . . . . . . . . . . 1 . . . . . . . . . . . 3 . . . . . . . Assault Status 1 | . . . . . . . . . . . . . . . . . . . . . . . 1 . . . . . . . Recall Extermination 1 | . . . . . . . . . . . . . . . . . . . . . . . 1 . . . . . . . Recall Reinforcements 1 | . . . . . . . . . . . . . . . . . . . . . . . . 1 . . . . . . Recall Assault 1 | . . . . . . . . . . . . . . . . . . . 1 . . . . . . . . . . . Hauler Manifests 1 | . . . . . . . . . . . 1 . . . . . . . . . . . . . . . . . . . Zone Layout 1 | . . . . . . . . . . . . . . . . . . . . . . . 1 . . . . . . . Proto ID Catalog 1 | . . 1 . . . . . . . . . . . . . . . . . . . . . . . . . . . . Release Object 2 | . . . . . 2 . . . . . . . . . . . . . . . . . . . . . . . . . Fabricator Hacks 20 | . . . . . . 2 . . . . 5 . 7 . . . . . . . . . 2 . 2 2 . . . . Load Schematic 11 | . . . . . . 1 . . . . 3 . 4 . . . . . . . . . 1 . 1 1 . . . . Build 9 | . . . . . . 1 . . . . 2 . 3 . . . . . . . . . 1 . 1 1 . . . . Repair Station Hacks 8 | . . . . . . 3 . . . . 2 . . . . . . . . . . . . . . 3 . . . . Scan Component 4 | . . . . . . 1 . . . . 1 . . . . . . . . . . . . . . 2 . . . . Repair 3 | . . . . . . 1 . . . . 1 . . . . . . . . . . . . . . 1 . . . . Refit 1 | . . . . . . 1 . . . . . . . . . . . . . . . . . . . . . . . . Recycling Unit Hacks 1 | . . . . . . 1 . . . . . . . . . . . . . . . . . . . . . . . . Retrieve Components 1 | . . . . . . 1 . . . . . . . . . . . . . . . . . . . . . . . . Scanalyzer 20 | . . . . . . 11 . . . . 2 . . . . . . . . . . . . 4 3 . . . . . Insert Component 8 | . . . . . . 4 . . . . 1 . . . . . . . . . . . . 3 . . . . . . Analyze 5 | . . . . . . 5 . . . . . . . . . . . . . . . . . . . . . . . . Retrieve Study 7 | . . . . . . 2 . . . . 1 . . . . . . . . . . . . 1 3 . . . . . Garrison Access Hacks 7 | . . . . . . 1 . . . . 2 . . . . . . . . . . . 2 1 . 1 . . . . Seal Access 7 | . . . . . . 1 . . . . 2 . . . . . . . . . . . 2 1 . 1 . . . . Unauthorized Hacks 126 | . 6 . 5 2 12 13 . . . . 15 . 5 . . . . 3 3 . . 10 18 11 10 4 9 . . . Terminals 88 | . 6 . 5 2 7 5 . . . . 8 . . . . . . 2 3 . . 10 14 10 4 4 8 . . . Track 4 | . . . . . . . . . . . . . . . . . . . . . . . 1 . 1 . 2 . . . Assimilate 4 | . . . . . . . . . . . 1 . . . . . . . 1 . . . 1 . . 1 . . . . Botnet 27 | . 2 . 1 . 2 . . . . . 2 . . . . . . 2 . . . 4 6 4 1 1 2 . . . Disrupt 2 | . . . . . . . . . . . . . . . . . . . . . . . . . . 1 1 . . . Operators 3 | . . . . . . . . . . . . . . . . . . . . . . . 1 . 1 . 1 . . . Skim 45 | . 4 . 4 2 5 5 . . . . 5 . . . . . . . 2 . . 3 5 6 1 1 2 . . . Sabotage 3 | . . . . . . . . . . . . . . . . . . . . . . 3 . . . . . . . . Fabricators 11 | . . . . . . 3 . . . . 1 . 1 . . . . . . . . . 4 . 2 . . . . . Report 2 | . . . . . . 1 . . . . . . . . . . . . . . . . 1 . . . . . . . Prioritize 3 | . . . . . . . . . . . . . 1 . . . . . . . . . 1 . 1 . . . . . Fabnet 3 | . . . . . . 1 . . . . . . . . . . . . . . . . 1 . 1 . . . . . Haulers 2 | . . . . . . 1 . . . . . . . . . . . . . . . . 1 . . . . . . . Recompile 1 | . . . . . . . . . . . 1 . . . . . . . . . . . . . . . . . . . Repair Stations 1 | . . . . . . . . . . . 1 . . . . . . . . . . . . . . . . . . . Mechanics 1 | . . . . . . . . . . . 1 . . . . . . . . . . . . . . . . . . . Recycling Units 24 | . . . . . 5 5 . . . . 5 . 4 . . . . 1 . . . . . . 4 . . . . . Monitor 3 | . . . . . . . . . . . 1 . 1 . . . . . . . . . . . 1 . . . . . Reject 5 | . . . . . . 2 . . . . 1 . 1 . . . . . . . . . . . 1 . . . . . Recyclers 5 | . . . . . . 1 . . . . 1 . 1 . . . . 1 . . . . . . 1 . . . . . Mask 6 | . . . . . . 2 . . . . 2 . 1 . . . . . . . . . . . 1 . . . . . Tunnel 5 | . . . . . 5 . . . . . . . . . . . . . . . . . . . . . . . . . Scanalyzers 2 | . . . . . . . . . . . . . . . . . . . . . . . . 1 . . 1 . . . Researchers 2 | . . . . . . . . . . . . . . . . . . . . . . . . 1 . . 1 . . . Garrison Access . | . . . . . . . . . . . . . . . . . . . . . . . . . . . . . . . Data Cores Recovered 4 | . . . . . . . . . . . 1 . . . . . . . . . . 1 . 1 1 . . . . . Used . | . . . . . . . . . . . . . . . . . . . . . . . . . . . . . . . Hacking Detections 69 | . 4 . 3 4 3 11 . . . 1 12 . 6 . . . 1 2 1 1 . 2 2 10 2 3 1 . . . Full Trace Events 12 | . . . . . . . . . . 1 3 . 3 . . . 1 . . . . . 1 1 1 1 . . . . Feedback Events . | . . . . . . . . . . . . . . . . . . . . . . . . . . . . . . . Feedback Blocked . | . . . . . . . . . . . . . . . . . . . . . . . . . . . . . . . Robot Schematics Acquired 4 | . . . . . . . . . 4 . . . . . . . . . . . . . . . . . . . . . Robots Built . | . . . . . . . . . . . . . . . . . . . . . . . . . . . . . . . Authchips . | . . . . . . . . . . . . . . . . . . . . . . . . . . . . . . . Time . | . . . . . . . . . . . . . . . . . . . . . . . . . . . . . . . Total Robot Build Rating . | . . . . . . . . . . . . . . . . . . . . . . . . . . . . . . . Part Schematics Acquired 24 | . 1 . . . . 4 . . 11 . 2 . . . . 4 . . . . . . . . . . 2 . . . Parts Built 14 | . . . . . . 1 . . . . 2 . 5 . . . . . . . . . 2 . 2 2 . . . . Authchips 2 | . . . . . . 1 . . . . . . 1 . . . . . . . . . . . . . . . . . Time 568 | . . . . . . 31 . . . . 236 . 193 . . . . . . . . . 36 . 36 36 . . . . Total Part Build Rating 49 | . . . . . . 2 . . . . 11 . 18 . . . . . . . . . 6 . 6 6 . . . . Part Studies Acquired 7 | . . . . . . 2 . . . . 1 . . . . . . . . . . . . 1 3 . . . . . Parts Repaired 3 | . . . . . . 1 . . . . 1 . . . . . . . . . . . . . . 1 . . . . Time 61 | . . . . . . 32 . . . . 16 . . . . . . . . . . . . . . 13 . . . . Parts Recycled . | . . . . . . . . . . . . . . . . . . . . . . . . . . . . . . . Recycled Matter . | . . . . . . . . . . . . . . . . . . . . . . . . . . . . . . . Retrieved Matter . | . . . . . . . . . . . . . . . . . . . . . . . . . . . . . . . Retrieved Components 1 | . . . . . . 1 . . . . . . . . . . . . . . . . . . . . . . . . Parts Scanalyzed 4 | . . . . . . 4 . . . . . . . . . . . . . . . . . . . . . . . . Part Schematics Acquired 4 | . . . . . . 4 . . . . . . . . . . . . . . . . . . . . . . . . Parts Damaged 1 | . . . . . . 1 . . . . . . . . . . . . . . . . . . . . . . . . Bothacking | -11 -10 -10 -8 -8 -8 -6 -6 -6 -6 -5 -5 -5 -5 -5 -5 -5 -4 -4 -4 -4 -4 -4 -3 -3 -2 -2 -2 -1 -1 -1 ------------ Run | Yrd Mat Sub Mat Sto Rec Fac Low Low Dat Pro Fac Was Fac Upp Upp Zhi Pro Fac Ext Cet Arc Hub Res Qua Res Tes Frg Acc Com Ac0 Used RIF Installer . | . . . . . . . . . . . . . . . . . . . . . . . . . . . . . . . Robots Hacked 23 | . . . . . . . . . . . . . . . . . . . . . . . . . . . 9 3 11 . Non-combat . | . . . . . . . . . . . . . . . . . . . . . . . . . . . . . . . Combat 23 | . . . . . . . . . . . . . . . . . . . . . . . . . . . 9 3 11 . Robot Hacks Applied . | . . . . . . . . . . . . . . . . . . . . . . . . . . . . . . . Relay Couplers Released 7 | . . . . . . 3 . . . . . . 2 . . . . . . . . . . . . . 2 . . . Machine Destruction 4 | . . . . . . . . . . . . . 2 . . . . . . . . . . . . . 2 . . . Programmers 3 | . . . . . . 3 . . . . . . . . . . . . . . . . . . . . . . . . Fabnet Peak Effective % 4 | . . . . . . . . . . . . . . . . . . . . . . . . . 3 3 3 4 4 4 Autooverrided 23 | . . . . . . . . . . . . . . . . . . . . . . . . . . . 9 3 11 . Robots Rewired 37 | . . . . . 14 . . . . . . . . . . . . . 23 . . . . . . . . . . . Allies Hacked 3 | . . . . . . . . . . . . . . . . . . . . . . . . . . . . . 3 . Hacks Repelled . | . . . . . . . . . . . . . . . . . . . . . . . . . . . . . . . Allies | -11 -10 -10 -8 -8 -8 -6 -6 -6 -6 -5 -5 -5 -5 -5 -5 -5 -4 -4 -4 -4 -4 -4 -3 -3 -2 -2 -2 -1 -1 -1 -------- Run | Yrd Mat Sub Mat Sto Rec Fac Low Low Dat Pro Fac Was Fac Upp Upp Zhi Pro Fac Ext Cet Arc Hub Res Qua Res Tes Frg Acc Com Ac0 Total Allies 75 | . . . . . 14 . . . . . 1 . . . . . . . 26 5 . . 1 . . 1 9 6 12 . Largest Group 18 | . . . . . 14 11 . . . . 1 . . . . . . . 15 18 18 16 1 1 . 1 1 3 7 . Highest-Rated Group 1174 | . . . . . 218 183 . . . . 10 . . . . . . . 776 1174 1174 964 10 10 . 45 82 379 408 . Highest-Rated Ally 159 | . . . . . 34 34 . . . . 10 . . . . . . . 159 159 159 96 10 10 . 45 82 135 82 . Total Orders 21 | . . . . . . 6 . . . . 1 . 4 . . . . . 1 . 2 2 1 3 . 1 . . . . STAY 10 | . . . . . . 1 . . . . 1 . . . . . . . 1 . 1 2 1 2 . 1 . . . . ROAM 4 | . . . . . . 2 . . . . . . 2 . . . . . . . . . . . . . . . . . FOLLOW 2 | . . . . . . . . . . . . . . . . . . . . . 1 . . 1 . . . . . . EXPLORE 4 | . . . . . . 2 . . . . . . 2 . . . . . . . . . . . . . . . . . RETURN 1 | . . . . . . 1 . . . . . . . . . . . . . . . . . . . . . . . . Ally Attacks 346 | . . . . . . 19 . . . . . . . . . . . . 121 58 16 65 . . . . 17 20 30 . Total Damage 9935 | . . . . . . 782 . . . . . . . . . . . . 2769 1152 435 1871 . . . . 487 601 1838 . Kills 42 | . . . . . . 5 . . . . . . . . . . . . 12 6 3 5 . . . . 1 4 6 . Allies Corrupted 12 | . . . . . . . . . . . . . . . . . . . 2 . . 5 . . . . 1 1 3 . Allies Melted 1 | . . . . . . . . . . . . . . . . . . . . . . 1 . . . . . . . . Intel | -11 -10 -10 -8 -8 -8 -6 -6 -6 -6 -5 -5 -5 -5 -5 -5 -5 -4 -4 -4 -4 -4 -4 -3 -3 -2 -2 -2 -1 -1 -1 ------- Run | Yrd Mat Sub Mat Sto Rec Fac Low Low Dat Pro Fac Was Fac Upp Upp Zhi Pro Fac Ext Cet Arc Hub Res Qua Res Tes Frg Acc Com Ac0 Active Infowar (turns) 22765 | 26 1194 2981 607 1091 1207 4041 417 417 52 660 1413 74 775 854 2192 138 980 . 347 . . 58 1184 667 329 138 8 454 149 312 Optics 312 | . . . . . . . . . . . . . . . . . . . . . . . . . . . . . . 312 Sensors 5 | . . . . . . 5 . . . . . . . . . . . . . . . . . . . . . . . . IFF 12119 | . . . . . . 2665 417 417 52 660 1206 32 114 854 2148 138 976 . 261 . . 58 1036 667 280 138 . . . . Terrain 1556 | . . 391 473 . . 583 . . . . . . . . . . . . . . . . . . . . . . . 109 Seismic 7260 | 26 1194 2590 592 1091 1207 . . . . . . . 484 . . . . . . . . . . . . . . 24 52 . T.N.C. 820 | . . . . . . 622 . . . . 198 . . . . . . . . . . . . . . . . . . . Cloaking 5 | . . . . . . . . . . . . . . . . . . . . . . . . . . . 4 . 1 . Jamming 365 | . . . . . . 166 . . . . 9 . 114 . . . . . 56 . . . . . . . 2 2 16 . ECM 462 | . . . . . . . . . . . . 42 63 . 44 . 4 . 30 . . . 148 . 49 . 2 . 80 . ID Mask 428 | . . . . . . . . . . . . . . . . . . . . . . . . . . . . 428 . . Robot Analysis Total 11 | . . . . . 1 . . . . . . . . . . 4 . . . . . . 2 3 1 . . . . . Derelict Logs Recovered 8 | . . 1 . . . . 1 1 . 1 . . . . 2 . 2 . . . . . . . . . . . . . Drone Launches 7 | . . . . . . 2 . . . . . . 5 . . . . . . . . . . . . . . . . . Drone Recoveries 4 | . . . . . . 1 . . . . . . 3 . . . . . . . . . . . . . . . . . Exploration | -11 -10 -10 -8 -8 -8 -6 -6 -6 -6 -5 -5 -5 -5 -5 -5 -5 -4 -4 -4 -4 -4 -4 -3 -3 -2 -2 -2 -1 -1 -1 ------------- Run | Yrd Mat Sub Mat Sto Rec Fac Low Low Dat Pro Fac Was Fac Upp Upp Zhi Pro Fac Ext Cet Arc Hub Res Qua Res Tes Frg Acc Com Ac0 Turns Passed 52165 | 101 1243 3219 972 1241 4833 5637 420 417 52 682 1869 154 1599 1278 2294 454 2104 497 1428 323 773 463 1227 951 416 1527 2038 1485 11999 469 Spaces Moved 31924 | 47 518 1594 474 462 2797 3596 546 517 79 494 1949 170 1080 534 1054 284 1387 310 783 186 461 312 812 1091 486 1004 1433 580 6124 760 Core 11 | 4 . . 7 . . . . . . . . . . . . . . . . . . . . . . . . . . . Treads 14074 | 43 518 1539 124 462 1534 717 22 59 . 293 362 170 506 245 72 . . . 1 186 461 312 31 601 486 455 522 . 3593 760 Legs 5514 | . . . . . 453 1012 . 458 79 201 451 . 53 236 401 284 609 310 231 . . . 187 . . 549 . . . . Wheels 398 | . . 55 343 . . . . . . . . . . . . . . . . . . . . . . . . . . . Hover 7936 | . . . . . . 1271 . . . . 1136 . 198 . . . 174 . 551 . . . 591 . . . 911 580 2524 . Flight 3991 | . . . . . 810 596 524 . . . . . 323 53 581 . 604 . . . . . 3 490 . . . . 7 . Fastest Speed 36 | 50 160 110 80 160 71 59 64 64 64 64 55 55 63 63 87 87 87 114 71 100 100 105 60 47 60 60 45 45 36 36 Average Speed 93 | 150 160 158 124 160 128 102 65 64 64 64 58 56 96 122 106 87 114 114 84 100 102 105 72 56 60 89 77 46 80 36 Slowest Speed 207 | 160 160 160 160 165 207 181 103 64 64 64 64 114 198 167 173 87 125 114 114 100 132 105 105 65 60 150 111 48 156 36 Overloaded Moves . | . . . . . . . . . . . . . . . . . . . . . . . . . . . . . . . Propulsion Burnouts . | . . . . . . . . . . . . . . . . . . . . . . . . . . . . . . . Robots Hopped 1 | . . . . . . 1 . . . . . . . . . . . . . . . . . . . . . . . . Potential Cave-ins 50 | . . . . 2 . 2 . . . . . . 6 . . . . . . . . . 2 . . . 12 1 9 16 Cave-ins Triggered 3 | . . . . . . . . . . . . . 1 . . . . . . . . . . . . . . . . 2 Teleports 3 | . . . . . . . . . . . . . . . . . . . . . . . . . . . 1 . 1 1 Exploration Rate (%) 57 | 5 83 60 36 57 98 55 65 69 70 63 45 83 39 47 67 60 83 9 87 76 88 41 33 87 15 76 36 8 90 50 Regions Visited 30 Branch Regions 20 Pre-discovered Areas 21 | . . . . . 7 2 1 1 1 1 1 . . . 1 3 . . . . . . . 3 . . . . . . Known Exits Taken 11 | . . . 1 . . 1 . . . 1 . . . 1 . . 1 . . . . 1 1 1 1 . 1 1 . . Unknown Exits Taken 17 | 1 1 1 . 1 1 . 1 1 1 . . . 1 . 1 1 . 1 1 1 1 . . . . 1 . . 1 . Scrap Searched 31 | . . 9 . . . . 10 3 . 2 . . . 2 2 . 3 . . . . . . . . . . . . . Spaces Dug 293 | . . 4 . 8 2 62 . . . 23 37 . 22 4 . . . 9 2 . . 5 26 10 11 14 3 6 42 3 Terrain Destroyed 2971 | . 66 12 13 10 41 108 1 29 . 70 327 6 182 7 15 . 45 92 62 24 31 30 145 40 17 267 711 320 258 42 Melee 156 | . . . . 7 2 61 . . . 6 15 . 21 4 . . . . 1 . . . 4 8 8 5 1 . 13 . Projectile 1747 | . . 6 13 3 3 6 1 . . 4 63 6 29 . 5 . 37 14 48 24 24 21 56 32 9 203 632 255 211 42 AOE 1068 | . 66 6 . . 36 41 . 29 . 60 249 . 132 3 10 . 8 78 13 . 7 9 85 . . 59 78 65 34 . Terrain Rammed . | . . . . . . . . . . . . . . . . . . . . . . . . . . . . . . . Walls Destroyed . | . . . . . . . . . . . . . . . . . . . . . . . . . . . . . . . Machines Disabled . | . . . . . . . . . . . . . . . . . . . . . . . . . . . . . . . Actions | -11 -10 -10 -8 -8 -8 -6 -6 -6 -6 -5 -5 -5 -5 -5 -5 -5 -4 -4 -4 -4 -4 -4 -3 -3 -2 -2 -2 -1 -1 -1 --------- Run | Yrd Mat Sub Mat Sto Rec Fac Low Low Dat Pro Fac Was Fac Upp Upp Zhi Pro Fac Ext Cet Arc Hub Res Qua Res Tes Frg Acc Com Ac0 Total 50696 | 66 859 2187 761 846 3947 5044 608 589 80 813 2454 204 1417 1111 2113 444 1815 420 1434 294 705 396 1354 1339 557 1480 1987 1659 12857 856 Wait 13913 | 2 283 415 141 252 854 779 48 61 . 279 191 10 75 509 927 80 291 67 276 74 177 28 425 112 28 303 52 919 6254 1 Move 31890 | 47 517 1593 473 461 2796 3593 545 516 78 493 1949 169 1078 533 1053 283 1386 309 782 185 460 311 811 1090 485 1003 1432 579 6123 757 Hop 1 | . . . . . . 1 . . . . . . . . . . . . . . . . . . . . . . . . Pick Up 297 | 6 9 40 19 13 14 49 3 . . . 25 . 12 5 3 7 5 2 1 . 2 2 2 12 1 14 7 3 38 3 Fast Attach 302 | 7 2 7 24 14 8 29 5 . 1 1 14 . 13 2 5 5 10 5 3 3 4 2 8 14 3 19 44 7 34 9 Attach 109 | . . 6 13 1 1 14 . . . . 14 1 10 5 5 2 . 2 1 . 1 1 . 7 . 4 3 2 12 4 Detach 108 | . . 2 7 . 3 14 1 . . . 13 . 4 4 6 4 . 1 1 1 1 1 1 8 . 3 7 3 21 2 Swap 302 | . 5 18 9 12 7 43 1 2 . 7 28 2 19 4 8 2 9 1 11 1 2 8 12 7 11 7 36 5 17 8 Drop 418 | . 3 36 26 21 27 58 5 . 1 . 34 . 18 4 4 11 18 4 4 1 4 3 11 21 2 20 37 4 36 5 Fire 2337 | 4 25 45 40 4 13 376 . 5 . 25 134 22 144 27 94 49 96 27 103 29 54 31 72 37 11 75 361 137 234 63 Melee 409 | . 15 19 7 50 40 81 . 4 . 8 32 . 40 15 6 . . . 5 . . . 5 22 14 28 1 . 17 . Ram 1 | . . . 1 . . . . . . . . . . . . . . . . . . . . . . . . . . . Kick 6 | . . . . . . . . . . . . . . 3 2 . . . . . . . 1 . . . . . . . Crush 7 | . . . . . . . . . . . . . 3 . . . . . . . . 1 . . 1 . . . . 2 Escape Stasis 65 | . . . . . . . . . . . . . 1 . . . . . . . . . . . . . 4 . 58 2 Rewire 436 | . . . . . 179 . . 1 . . . . . . . 1 . . 244 . . . . . . . . . 11 . Trap 4 | . . 1 . . . . . . . . . . . . . . . . . . . 3 . . . . . . . . Miscellaneous 91 | . . 5 1 18 5 7 . . . . 20 . . . . . . 2 3 . . 5 6 9 1 4 3 . 2 . Route ------- -11/Scrapyard -10/Materials (discovered 5 exits: [*Mat x3] / [*Min] / *Sub) -10/Subcaves -8/Materials -8/Storage (discovered 2 exits: [*Fac] / *Rec) -8/Recycling -6/Factory (discovered 6 exits: *Fac x4 / *Low x2) -6/Lower Caves -6/Lower Caves -6/Data Miner -5/Proximity Caves -5/Factory (discovered 4 exits: *Fac x4) -5/Waste -5/Factory -5/Upper Caves -5/Upper Caves (discovered 2 exits: *Fac / *Zhi) -5/Zhirov -4/Proximity Caves -4/Factory (discovered 4 exits: Res / *Upp x2 / *Ext) -4/Extension (discovered 3 exits: *Res x2 / *Cet) -4/Cetus (discovered 2 exits: *Res / [*Arc]) -4/Archives (discovered 3 exits: *Res / *Hub x2) -4/Hub_04(d) -3/Research (discovered 4 exits: *Res x2 / *Qua x2) -3/Quarantine -2/Research (discovered 4 exits: *Acc x3 / *Tes) -2/Testing (discovered 2 exits: *Sec / *Frg) -2/Protoforge -1/Access (discovered 2 exits: Sur / *Com) -1/Command (discovered 3 exits: *Sur x2 / *Ac0) -1/Access_0 0b11 Command History --------- Turn | Location | Event 13 | -11/Scrapyard | Discovered new exit (range 16) 102 | -11/Scrapyard | Entered Materials 289 | -10/Materials | Discovered new exit (range 16) 312 | -10/Materials | Build established: Mutant 415 | -10/Materials | Discovered new exit (range 13) 564 | -10/Materials | Discovered new exit (range 11) 1230 | -10/Materials | Discovered new exit (range 13) 1321 | -10/Materials | Discovered new exit (range 15) 1345 | -10/Materials | Entered Subcaves 1346 | -10/Subcaves | Approached by a straggling Scientist 1772 | -10/Subcaves | Visited 4L-MR0's lab 1790 | -10/Subcaves | Found Arachnoskeleton 2008 | -10/Subcaves | Learned Materials security intel 2235 | -10/Subcaves | Shifting Twisted Machinery released Sub. Beam Cannon 2246 | -10/Subcaves | Shifting Twisted Machinery released Sub. Beam Cannon 3354 | -10/Subcaves | Visited Clippyterm 3359 | -10/Subcaves | Learned Factory fabricator intel 3359 | -10/Subcaves | Learned Research security intel 3664 | -10/Subcaves | Shifting Twisted Machinery released Sub. Power Source 3785 | -10/Subcaves | Disturbed a concealed Subdweller 4469 | -10/Subcaves | Core integrity fell below 50% 4547 | -10/Subcaves | Discovered new exit (range 12) 4564 | -10/Subcaves | Entered Materials 4564 | -8/Materials | Evolved 4 slots: Propulsion x2, Utility x1, Weapon x1 5145 | -8/Materials | Discovered new exit (range 11) 5322 | -8/Materials | Identified exit to Storage 5536 | -8/Materials | Entered Storage 5573 | -8/Storage | Build established: Scavenger-Mutant 5978 | -8/Storage | Central database locked down 6559 | -8/Storage | Discovered new exit (range 6) 6612 | -8/Storage | Core integrity fell below 50% 6645 | -8/Storage | Lost 5 parts (1p3n1u) 6681 | -8/Storage | Garrison activated, responded to threat 6771 | -8/Storage | Used back door to open Recycling access 6771 | -8/Storage | Discovered new exit (range 5) 6777 | -8/Storage | Entered Recycling 7423 | -8/Recycling | Discovered new exit (range 15) 7842 | -8/Recycling | Build established: Scavenger-Gunner 7918 | -8/Recycling | Learned 4 Factory zone layouts 7949 | -8/Recycling | Learned Factory trap positions 7970 | -8/Recycling | Learned Factory recycling unit intel 7983 | -8/Recycling | Learned location of Zion (-7) 8024 | -8/Recycling | Learned location of 2 exits from Factory 8030 | -8/Recycling | Entered Scraplab 8049 | -8/Recycling | Found Prototype Device 8049 | -8/Recycling | Identified Scrap Engine 8539 | -8/Recycling | Build established: Gunner 9047 | -8/Recycling | Build established: Commander-Mutant 9357 | -8/Recycling | Build established: Commander-Construct 11610 | -8/Recycling | Entered Factory 11610 | -6/Factory | Accompanied by 11 allies 11610 | -6/Factory | Evolved 4 slots: Power x1, Propulsion x1, Utility x1, Weapon x1 11611 | -6/Factory | Identified exit to Lower Caves 11612 | -6/Factory | Identified exit to Factory 11614 | -6/Factory | Loaded intel: 122 trap records 11615 | -6/Factory | Loaded intel: 6 fabricator locations 11616 | -6/Factory | Loaded intel: 8 recycling unit locations 11874 | -6/Factory | Central database locked down 12004 | -6/Factory | Lost 11 allies 12149 | -6/Factory | Learned Factory trap positions 12228 | -6/Factory | Learned 2 Extension zone layouts 12247 | -6/Factory | Build established: Construct 12253 | -6/Factory | Discovered exit to Factory (range 7) 12296 | -6/Factory | Learned location of 1 exit from Extension 12353 | -6/Factory | Learned location of Upper Caves (-4) 12398 | -6/Factory | Learned 4 Upper Caves zone layouts 12433 | -6/Factory | Learned Factory trap positions 12491 | -6/Factory | Learned Hub_04(d) terminal intel 12590 | -6/Factory | Learned Extension emergency access door positions 12663 | -6/Factory | Cargo convoy interrupted 12725 | -6/Factory | Destroyed 8 combat bots 12838 | -6/Factory | Found Prototype Processor 12838 | -6/Factory | Identified Exp. Melee Analysis Suite 12850 | -6/Factory | Found PL-3XN's Ring of Power 13661 | -6/Factory | Spotted B-75 Beast 13759 | -6/Factory | Fabricated Sub. Shrapnel Launcher (x1) 14417 | -6/Factory | Repaired Plasma Cutter 14760 | -6/Factory | First assault squad dispatched 14824 | -6/Factory | Garrison activated, responded to threat 15052 | -6/Factory | Destroyed B-75 Beast 15948 | -6/Factory | Destroyed 8 combat bots 16692 | -6/Factory | Core integrity fell below 50% 16943 | -6/Factory | High security lockdown imminent 17023 | -6/Factory | High security lockdown engaged 17097 | -6/Factory | Destroyed 8 combat bots 17247 | -6/Factory | Entered Lower Caves 17426 | -6/Lower Caves | Spotted B-75 Beast 17509 | -6/Lower Caves | Discovered new exit (range 10) 17667 | -6/Lower Caves | Entered another Lower Caves area 17698 | -6/Lower Caves | Found DCF Scrap (11 items) 17774 | -6/Lower Caves | Entered an active Warlord outpost 17788 | -6/Lower Caves | Learned Armory trap positions 17788 | -6/Lower Caves | Learned Armory emergency access door positions 17899 | -6/Lower Caves | Encountered a Warlord checkpoint 18000 | -6/Lower Caves | Discovered new exit (range 12) 18084 | -6/Lower Caves | Entered Data Miner 18084 | -6/Data Miner | Discovered new exit (range 6) 18097 | -6/Data Miner | Met Data Miner 18109 | -6/Data Miner | Learned location of Section 7 (-2) 18109 | -6/Data Miner | Acquired the access code to Warlord's prototype stash 18121 | -6/Data Miner | Received God Mode back door access code from Data Miner 18136 | -6/Data Miner | Entered Proximity Caves 18378 | -5/Proximity Caves | Learned Factory stockpile data 18402 | -5/Proximity Caves | Attracted the attention of an 0b10 base 18469 | -5/Proximity Caves | Destroyed 13 combat bots 18514 | -5/Proximity Caves | Spotted B-75 Beast 18785 | -5/Proximity Caves | Discovered exit to Factory (range 5) 18818 | -5/Proximity Caves | Entered Factory 18818 | -5/Factory | Evolved 2 slots: Propulsion x1, Weapon x1 18819 | -5/Factory | Loaded intel: 92 trap records 18841 | -5/Factory | Repaired Sub. Shrapnel Launcher 18979 | -5/Factory | Fabricated Cld. Gravmag System (x1) 19176 | -5/Factory | Fabricated Gui. EMP Blaster (x1) 19362 | -5/Factory | Garrison activated, responded to threat 19459 | -5/Factory | Discovered new exit (range 6) 19465 | -5/Factory | Identified exit to Factory 19780 | -5/Factory | Discovered exit to Factory (range 9) 20304 | -5/Factory | Learned Extension terminal intel 20326 | -5/Factory | Destroyed 9 combat bots 20380 | -5/Factory | Learned Armory garrison access intel 20446 | -5/Factory | Learned location of 1 exit from Testing 20503 | -5/Factory | Learned location of 1 exit from Upper Caves 20550 | -5/Factory | Learned location of Hub_04(d) (-4) 20586 | -5/Factory | Learned 2 Upper Caves zone layouts 20618 | -5/Factory | First assault squad dispatched 20631 | -5/Factory | Learned location of 3 exits from Research 20687 | -5/Factory | Sucked down chute 20687 | -5/Factory | Entered Waste 20704 | -5/Waste | Spotted C-40 Crusher 20717 | -5/Waste | Destroyed C-40 Crusher 20721 | -5/Waste | Spotted C-40 Crusher 20735 | -5/Waste | Spotted C-40 Crusher 20740 | -5/Waste | Spotted C-40 Crusher 20767 | -5/Waste | Spotted C-40 Crusher 20769 | -5/Waste | Crushed by Compactor (0 parts destroyed, 1 dropped) 20788 | -5/Waste | Spotted C-40 Crusher 20790 | -5/Waste | Discovered new exit (range 12) 20841 | -5/Waste | Entered Factory 20842 | -5/Factory | Loaded intel: 82 trap records 20976 | -5/Factory | Discovered new exit (range 43) 21016 | -5/Factory | Fabricated Cld. Gravmag System (x1) 21141 | -5/Factory | First assault squad dispatched 21186 | -5/Factory | Fabricated Flak Cannon? 21361 | -5/Factory | Destroyed 8 combat bots 21421 | -5/Factory | Fabricated Flak Cannon? 21491 | -5/Factory | Cargo convoy interrupted 21531 | -5/Factory | Destroyed 10 combat bots 21554 | -5/Factory | Found Prototype Device 21554 | -5/Factory | Identified Exp. Thermal Defense Suite 21761 | -5/Factory | Incoming assault squad redirected 21761 | -5/Factory | Incoming assault squad redirected 22042 | -5/Factory | Destroyed 7 combat bots 22059 | -5/Factory | Incoming assault squad redirected 22063 | -5/Factory | High security lockdown imminent 22143 | -5/Factory | High security lockdown engaged 22149 | -5/Factory | Destroyed 9 combat bots 22321 | -5/Factory | Spotted B-75 Beast 22355 | -5/Factory | Crushed by falling debris 22434 | -5/Factory | Core integrity fell below 50% 22440 | -5/Factory | Entered Upper Caves 22441 | -5/Upper Caves | Identified exit to Upper Caves 23718 | -5/Upper Caves | Entered another Upper Caves area 23758 | -5/Upper Caves | Found DCF Scrap (14 items) 24319 | -5/Upper Caves | Lost 3 parts (1p2w) 24852 | -5/Upper Caves | Discovered exit to Factory (range 7) 25386 | -5/Upper Caves | Attracted the attention of an 0b10 base 25668 | -5/Upper Caves | Learned Armory trap positions 25668 | -5/Upper Caves | Learned Factory terminal intel 25826 | -5/Upper Caves | Learned Factory stockpile data 25830 | -5/Upper Caves | Learned 8 Factory zone layouts 26003 | -5/Upper Caves | Discovered new exit (range 10) 26012 | -5/Upper Caves | Entered Zhirov 26012 | -5/Zhirov | Discovered new exit (range 3) 26028 | -5/Zhirov | Met Zhirov 26049 | -5/Zhirov | Found Alien Artifact 26049 | -5/Zhirov | Identified Integrated Dissipator 26049 | -5/Zhirov | Installed Integrated Dissipator, increased core heat dissipation (+20) 26352 | -5/Zhirov | Found Alien Artifact 26386 | -5/Zhirov | Learned location of Quarantine (-3) 26386 | -5/Zhirov | Learned location of Testing (-2) 26397 | -5/Zhirov | Zhirov requested help retrieving the SGEMP Prototype 26466 | -5/Zhirov | Entered Proximity Caves 26533 | -4/Proximity Caves | Found Alien Artifact 26592 | -4/Proximity Caves | Attracted the attention of an 0b10 checkpoint 26635 | -4/Proximity Caves | Learned 4 Research zone layouts 27023 | -4/Proximity Caves | Discovered exit to Factory (range 10) 27217 | -4/Proximity Caves | Learned Research interactive machine intel 27492 | -4/Proximity Caves | Attracted the attention of an 0b10 base 27539 | -4/Proximity Caves | Destroyed 8 combat bots 27549 | -4/Proximity Caves | Learned 6 Upper Caves zone layouts 27549 | -4/Proximity Caves | Learned Extension emergency access door positions 27549 | -4/Proximity Caves | Learned Extension stockpile data 27549 | -4/Proximity Caves | Learned Armory security intel 28570 | -4/Proximity Caves | Entered Factory 28570 | -4/Factory | Evolved 2 slots: Propulsion x1, Weapon x1 28571 | -4/Factory | Identified exit to Research 28571 | -4/Factory | Identified exit to Upper Caves 28574 | -4/Factory | Loaded intel: 27 terminal locations 29051 | -4/Factory | Discovered new exit (range 15) 29067 | -4/Factory | Entered Extension 29072 | -4/Extension | Loaded intel: 8 terminal locations 29136 | -4/Extension | Rescued a captive Derelict 29861 | -4/Extension | Build established: Commander-Construct 29982 | -4/Extension | Spotted B-86 Titan 29989 | -4/Extension | Destroyed B-86 Titan 30009 | -4/Extension | Spotted B-86 Titan 30030 | -4/Extension | Allies destroyed B-86 Titan 30066 | -4/Extension | Lost 3 allies 30067 | -4/Extension | First assault squad dispatched 30175 | -4/Extension | Destroyed 10 combat bots 30226 | -4/Extension | Rescued A7 30352 | -4/Extension | Incoming assault squad redirected 30367 | -4/Extension | Disrupted transfer network 30436 | -4/Extension | Discovered exit to Research (range 10) 30437 | -4/Extension | Discovered new exit (range 6) 30495 | -4/Extension | Entered Cetus 30495 | -4/Cetus | Accompanied by 15 allies (A7) 30500 | -4/Cetus | Acquired a Cetus Manufacturing Module code from A7 30518 | -4/Cetus | Spotted Cetus Guard 30518 | -4/Cetus | Spotted Cetus Guard 30518 | -4/Cetus | Spotted Cetus Guard 30518 | -4/Cetus | Spotted Cetus Guard 30527 | -4/Cetus | Allies destroyed Cetus Guard 30531 | -4/Cetus | Destroyed Cetus Guard 30535 | -4/Cetus | Allies destroyed Cetus Guard 30539 | -4/Cetus | Allies destroyed Cetus Guard 30623 | -4/Cetus | Started Cetus Manufacturing Module 30630 | -4/Cetus | Escorted A7 to Cetus Mainframe 30640 | -4/Cetus | Discovered new exit (range 16) 30648 | -4/Cetus | Manufactured an Enhanced Grunt 30658 | -4/Cetus | Spotted Cetus Guard 30658 | -4/Cetus | Spotted Cetus Guard 30659 | -4/Cetus | Destroyed Cetus Guard 30660 | -4/Cetus | Spotted Cetus Guard 30663 | -4/Cetus | Destroyed Cetus Guard 30671 | -4/Cetus | Destroyed Cetus Guard 30671 | -4/Cetus | Spotted Cetus Guard 30673 | -4/Cetus | Manufactured an Enhanced Grunt 30679 | -4/Cetus | Allies destroyed Cetus Guard 30692 | -4/Cetus | Discovered exit to Research (range 15) 30698 | -4/Cetus | Manufactured an Enhanced Grunt 30698 | -4/Cetus | Met Revision 17 30723 | -4/Cetus | Manufactured an Enhanced Grunt 30748 | -4/Cetus | Manufactured an Enhanced Grunt 30818 | -4/Cetus | Entered Archives 30818 | -4/Archives | Accompanied by 18 allies (A7) 30823 | -4/Archives | Received a hacking code to weaken MAIN.C 30876 | -4/Archives | Discovered new exit (range 15) 30900 | -4/Archives | Discovered new exit (range 15) 31071 | -4/Archives | Discovered exit to Research (range 14) 31591 | -4/Archives | Entered Hub_04(d) 31591 | -4/Hub_04(d) | Accompanied by 17 allies 31591 | -4/Hub_04(d) | Spotted B-86 Titan 31592 | -4/Hub_04(d) | Loaded intel: 16 terminal locations 31597 | -4/Hub_04(d) | Allies destroyed B-86 Titan 31720 | -4/Hub_04(d) | Network Hub disabled 31814 | -4/Hub_04(d) | Network Hub disabled 31840 | -4/Hub_04(d) | Network Hub disabled 31840 | -4/Hub_04(d) | Spotted Lightning 31840 | -4/Hub_04(d) | Spotted Lightning 31840 | -4/Hub_04(d) | Spotted Lightning 31843 | -4/Hub_04(d) | Destroyed Lightning 31852 | -4/Hub_04(d) | Allies destroyed Lightning 31853 | -4/Hub_04(d) | Destroyed Lightning 31873 | -4/Hub_04(d) | Found Prototype Device 31873 | -4/Hub_04(d) | Identified Exp. Phase Shifter 31882 | -4/Hub_04(d) | Lost 13 allies 32026 | -4/Hub_04(d) | Discovered exit to Research (range 5) 32054 | -4/Hub_04(d) | Entered Research 32054 | -3/Research | Evolved 2 slots: Power x1, Propulsion x1 32055 | -3/Research | Identified exit to Research 32055 | -3/Research | Identified exit to Quarantine 32058 | -3/Research | Loaded intel: 47 interactive machine locations 32095 | -3/Research | Spotted B-86 Titan 32152 | -3/Research | Build established: Scavenger-Construct 32254 | -3/Research | Revision forces began assault on 0b10 32395 | -3/Research | Spotted B-86 Titan 32597 | -3/Research | Fabricated Flak Cannon (x2) 32632 | -3/Research | Build established: Construct 32668 | -3/Research | Discovered exit to Research (range 3) 32699 | -3/Research | Central database locked down 32754 | -3/Research | Research terminal network offline 33281 | -3/Research | Entered Quarantine 33281 | -3/Quarantine | Accompanied by 1 ally 33356 | -3/Quarantine | Found Alien Artifact 33428 | -3/Quarantine | Identified Transdimensional Reconstructor 33428 | -3/Quarantine | Identified Subatomic Replicator 33428 | -3/Quarantine | Identified Dimensional Node Initializer 33516 | -3/Quarantine | Learned 8 Section 7 zone layouts 33525 | -3/Quarantine | Found Transdimensional Reconstructor 33528 | -3/Quarantine | Found Alien Artifact 33602 | -3/Quarantine | Learned 4 Access zone layouts 33603 | -3/Quarantine | Learned Research stockpile data 33610 | -3/Quarantine | Learned 12 Research zone layouts 33644 | -3/Quarantine | Unchained authorized (DW-4LL) 33657 | -3/Quarantine | Learned Research terminal intel 33686 | -3/Quarantine | Found Alien Impact Weapon 33686 | -3/Quarantine | Identified Core Stripper 33707 | -3/Quarantine | Cryocooling Duct disabled 33722 | -3/Quarantine | Ambient heat levels rising (+20) 33722 | -3/Quarantine | Non-combat units ordered to evacuate 33824 | -3/Quarantine | DW-4LL burst out of a wall 33825 | -3/Quarantine | Destroyed DW-4LL 33828 | -3/Quarantine | Found Prototype Treads 33828 | -3/Quarantine | Identified DW-4LL's Griptreads 33831 | -3/Quarantine | Found Prototype Device 33831 | -3/Quarantine | Identified Exp. Weapon Cycler 33834 | -3/Quarantine | Found ID Mask 33843 | -3/Quarantine | Found Prototype Ballistic Gun 33843 | -3/Quarantine | Identified DW-4LL's Megashotty 33889 | -3/Quarantine | Used Subatomic Replicator to replicate DW-4LL's Megashotty 33935 | -3/Quarantine | Found Alien Slashing Weapon 33935 | -3/Quarantine | Identified Sigix Broadsword 34037 | -3/Quarantine | Found Alien Artifact 34037 | -3/Quarantine | Identified Phase Redirector 34232 | -3/Quarantine | Entered Research 34232 | -2/Research | Evolved 2 slots: Power x1, Propulsion x1 34233 | -2/Research | Identified exit to Testing 34233 | -2/Research | Identified exit to Access 34235 | -2/Research | Loaded intel: 23 terminal locations 34310 | -2/Research | Incoming investigation squad redirected 34321 | -2/Research | Fabricated Flak Cannon? 34498 | -2/Research | Spotted B-90 Cyclops 34528 | -2/Research | Destroyed B-90 Cyclops 34548 | -2/Research | Build established: Generator-Construct 34648 | -2/Research | Discovered exit to Access (range 9) 34648 | -2/Research | Entered Testing 34649 | -2/Testing | Identified exit to Section 7 34680 | -2/Testing | Found Prototype Energy Cannon 34819 | -2/Testing | Spotted Striker 34842 | -2/Testing | Spotted Striker 34853 | -2/Testing | Spotted Alpha 7 34886 | -2/Testing | Destroyed Striker 34891 | -2/Testing | Destroyed Alpha 7 35035 | -2/Testing | Stole the SGEMP Prototype 35069 | -2/Testing | Found Prototype Energy Cannon 35069 | -2/Testing | Identified Imp. Potential Cannon 35116 | -2/Testing | Found Prototype Energy Cannon 35116 | -2/Testing | Identified Potential Cannon 35265 | -2/Testing | Repaired Lrg. Storage Unit 35310 | -2/Testing | Found Prototype Launcher 35310 | -2/Testing | Identified Gui. Micro-nuke Launcher 35398 | -2/Testing | First assault squad dispatched 35462 | -2/Testing | Destroyed 8 combat bots 35601 | -2/Testing | Found Prototype Device 35601 | -2/Testing | Identified AEGIS Remote Shield 35669 | -2/Testing | Incoming assault squad redirected 35735 | -2/Testing | Found Prototype Hackware 35791 | -2/Testing | Fabricated Flak Cannon (x2) 35880 | -2/Testing | Destroyed 7 combat bots 35928 | -2/Testing | Incoming assault squad redirected 35988 | -2/Testing | Spotted Fortress 36003 | -2/Testing | Destroyed Fortress 36167 | -2/Testing | Discovered new exit (range 7) 36175 | -2/Testing | Entered Protoforge 36296 | -2/Protoforge | Spotted B-90 Cyclops 36296 | -2/Protoforge | Superfortress began startup sequence 36302 | -2/Protoforge | Destroyed B-90 Cyclops 36348 | -2/Protoforge | Identified Null Cannon 36443 | -2/Protoforge | Discovered exit to Access (range 13) 36459 | -2/Protoforge | Initialized slip node 36545 | -2/Protoforge | Spotted Overlord 36545 | -2/Protoforge | Destroyed Overlord 36562 | -2/Protoforge | Found Prototype Device 36562 | -2/Protoforge | Identified Exp. Transmission Jammer 36564 | -2/Protoforge | Found Prototype Device 36564 | -2/Protoforge | Identified Adv. Kinecellerator 36569 | -2/Protoforge | Found Prototype Device 36569 | -2/Protoforge | Identified Exp. Remote Shield 36576 | -2/Protoforge | Found Exp. Weapon Cycler 36615 | -2/Protoforge | Spotted Hotshot 36615 | -2/Protoforge | Spotted Hotshot 36616 | -2/Protoforge | Spotted Hotshot 36617 | -2/Protoforge | Spotted Hotshot 36627 | -2/Protoforge | Destroyed Hotshot 36629 | -2/Protoforge | Destroyed Hotshot 36635 | -2/Protoforge | Destroyed Hotshot 36640 | -2/Protoforge | Destroyed Hotshot 36675 | -2/Protoforge | First assault squad dispatched 36765 | -2/Protoforge | Found Prototype Launcher 36765 | -2/Protoforge | Identified Cep. Concussive Dispersal Blaster 36776 | -2/Protoforge | Destroyed 10 combat bots 36826 | -2/Protoforge | High security lockdown imminent 36826 | -2/Protoforge | Destroyed Superfortress 36826 | -2/Protoforge | Destroyed Hotshot 36843 | -2/Protoforge | Found Prototype Device 36843 | -2/Protoforge | Identified Thermal Barrier 36846 | -2/Protoforge | Found Prototype Power Core 36846 | -2/Protoforge | Identified Cep. Zero-point Core 36849 | -2/Protoforge | Found Cep. Zero-point Core 36856 | -2/Protoforge | Found Prototype Device 36856 | -2/Protoforge | Identified Cep. Matter Streamer 36859 | -2/Protoforge | Found Prototype Energy Cannon 36859 | -2/Protoforge | Identified Cld. Nova Cannon 36862 | -2/Protoforge | Found Prototype Ballistic Cannon 36862 | -2/Protoforge | Identified Cep. Heavy Railcannon 36866 | -2/Protoforge | Found Prototype Device 36866 | -2/Protoforge | Identified Exp. Force Field 36869 | -2/Protoforge | Found Prototype Device 36869 | -2/Protoforge | Identified Cep. Antimissile System 36872 | -2/Protoforge | Found Prototype Storage 36872 | -2/Protoforge | Identified Cep. Chromion Battery 36875 | -2/Protoforge | Found Prototype Storage 36875 | -2/Protoforge | Identified Cep. NT7 Matterbank 36906 | -2/Protoforge | High security lockdown engaged 36951 | -2/Protoforge | Garrison activated, responded to threat 37013 | -2/Protoforge | Destroyed 14 combat bots 37032 | -2/Protoforge | Found Prototype Device 37040 | -2/Protoforge | Spotted Immortal 37040 | -2/Protoforge | Spotted Immortal 37047 | -2/Protoforge | Destroyed Immortal 37057 | -2/Protoforge | Destroyed Immortal 37061 | -2/Protoforge | Spotted Decapitator 37061 | -2/Protoforge | Spotted Decapitator 37061 | -2/Protoforge | Spotted Decapitator 37061 | -2/Protoforge | Spotted Decapitator 37061 | -2/Protoforge | Found Prototype Device 37061 | -2/Protoforge | Identified Exp. Cloaking Device 37069 | -2/Protoforge | Destroyed Decapitator 37069 | -2/Protoforge | Destroyed Decapitator 37073 | -2/Protoforge | Destroyed Decapitator 37076 | -2/Protoforge | Destroyed Decapitator 37093 | -2/Protoforge | Found Prototype Device 37093 | -2/Protoforge | Identified Cep. Countertargeting System 37096 | -2/Protoforge | Found Prototype Device 37096 | -2/Protoforge | Identified Exp. Force Booster 37099 | -2/Protoforge | Found Prototype Device 37099 | -2/Protoforge | Identified Cep. Weapon Articulator 37103 | -2/Protoforge | Found Prototype Device 37103 | -2/Protoforge | Identified Exp. Kinecellerator 37106 | -2/Protoforge | Found Prototype Device 37106 | -2/Protoforge | Identified Cep. Networked Targeting System 37108 | -2/Protoforge | Found Prototype Device 37108 | -2/Protoforge | Identified Cep. Hypertargeting System 37112 | -2/Protoforge | Found Prototype Device 37112 | -2/Protoforge | Identified Cep. Recoil Nullifier 37115 | -2/Protoforge | Found Prototype Processor 37115 | -2/Protoforge | Identified Cep. Melee Reflex Suite 37165 | -2/Protoforge | Spotted Investigator 37165 | -2/Protoforge | Scanned by Researcher 37182 | -2/Protoforge | Destroyed Investigator 37216 | -2/Protoforge | Destroyed 26 combat bots 37220 | -2/Protoforge | Additional patrols dispatched to research labs 37292 | -2/Protoforge | Destroyed 7 combat bots 37370 | -2/Protoforge | Spotted Investigator 37375 | -2/Protoforge | Destroyed Investigator 37394 | -2/Protoforge | Destroyed 7 combat bots 37404 | -2/Protoforge | Found Prototype Launcher 37404 | -2/Protoforge | Identified Cep. Rapid Grenade Launcher 37405 | -2/Protoforge | System corruption reached 10% 37410 | -2/Protoforge | Spotted V118-k 37414 | -2/Protoforge | Found Faulty Cep. Rapid Grenade Launcher 37424 | -2/Protoforge | Spotted V774-u 37424 | -2/Protoforge | Spotted V644-f 37424 | -2/Protoforge | Spotted V736-t 37485 | -2/Protoforge | Destroyed Executioner 37495 | -2/Protoforge | Spotted Executioner 37545 | -2/Protoforge | Destroyed Executioner 37629 | -2/Protoforge | Spotted Investigator 37630 | -2/Protoforge | Destroyed Investigator 37634 | -2/Protoforge | Destroyed Executioner 37642 | -2/Protoforge | Spotted V999-e 37646 | -2/Protoforge | Destroyed V999-e 37648 | -2/Protoforge | Spotted V490-s 37650 | -2/Protoforge | Destroyed V490-s 37652 | -2/Protoforge | Spotted Decapitator 37652 | -2/Protoforge | Spotted Decapitator 37652 | -2/Protoforge | Spotted Decapitator 37680 | -2/Protoforge | Found Prototype Ballistic Gun 37680 | -2/Protoforge | Identified Cep. XC Strikerail 37684 | -2/Protoforge | Destroyed 58 combat bots 37703 | -2/Protoforge | Spotted V017-i 37703 | -2/Protoforge | Spotted V618-g 37708 | -2/Protoforge | Spotted Immortal 37708 | -2/Protoforge | Spotted Immortal 37718 | -2/Protoforge | Destroyed Immortal 37724 | -2/Protoforge | Destroyed Immortal 37728 | -2/Protoforge | Spotted V491-x 37731 | -2/Protoforge | Destroyed V491-x 37734 | -2/Protoforge | Found Prototype Ballistic Cannon 37734 | -2/Protoforge | Identified Cep. Helical Railcannon 37737 | -2/Protoforge | Found Prototype Energy Cannon 37737 | -2/Protoforge | Identified Cep. Plasma Driver 37741 | -2/Protoforge | Found Prototype Energy Gun 37741 | -2/Protoforge | Identified Cep. Lightning Penetrator 37744 | -2/Protoforge | Found Prototype Energy Gun 37744 | -2/Protoforge | Identified Cep. Variable Chargecaster 37775 | -2/Protoforge | Found Prototype Launcher 37775 | -2/Protoforge | Identified Adv. Micro-nuke Launcher 37779 | -2/Protoforge | Identified Crosscalibrator 37791 | -2/Protoforge | Spotted Striker 37792 | -2/Protoforge | Spotted Executioner 37793 | -2/Protoforge | Destroyed Executioner 37795 | -2/Protoforge | Spotted Executioner 37798 | -2/Protoforge | Destroyed Striker 37799 | -2/Protoforge | Destroyed Executioner 37800 | -2/Protoforge | Spotted Executioner 37802 | -2/Protoforge | Destroyed Executioner 37802 | -2/Protoforge | Destroyed Investigator 37806 | -2/Protoforge | Destroyed Executioner 37824 | -2/Protoforge | Spotted V035-n 37830 | -2/Protoforge | Destroyed V017-i 37832 | -2/Protoforge | Destroyed V618-g 37844 | -2/Protoforge | Destroyed V035-n 37857 | -2/Protoforge | Found Prototype Hover Unit 37857 | -2/Protoforge | Identified Cep. Combat Aerolev Unit 37865 | -2/Protoforge | Lost 3 allies 37870 | -2/Protoforge | Destroyed 33 combat bots 37905 | -2/Protoforge | Destroyed Executioner 37919 | -2/Protoforge | Found Prototype Launcher 37919 | -2/Protoforge | Identified Containment Facilitator 37936 | -2/Protoforge | Destroyed 7 combat bots 38006 | -2/Protoforge | Destroyed AP7-3 38037 | -2/Protoforge | Spotted AP7-3 38043 | -2/Protoforge | Destroyed AP7-3 38055 | -2/Protoforge | Found Prototype Device 38055 | -2/Protoforge | Identified Exp. ECM Suite 38062 | -2/Protoforge | Found Prototype Device 38062 | -2/Protoforge | Identified Cep. Thermoelectric Network 38064 | -2/Protoforge | Found Prototype Device 38064 | -2/Protoforge | Identified Cep. Cloak Mesh 38101 | -2/Protoforge | Spotted Striker 38101 | -2/Protoforge | Spotted Striker 38101 | -2/Protoforge | Spotted Striker 38110 | -2/Protoforge | Destroyed Striker 38112 | -2/Protoforge | Destroyed Striker 38112 | -2/Protoforge | Destroyed Striker 38133 | -2/Protoforge | Spotted Striker 38135 | -2/Protoforge | Destroyed Striker 38140 | -2/Protoforge | System corruption reached 30% 38158 | -2/Protoforge | Spotted Executioner 38162 | -2/Protoforge | Destroyed Executioner 38175 | -2/Protoforge | Local machine network offline 38175 | -2/Protoforge | Spotted Striker 38178 | -2/Protoforge | Spotted Striker 38184 | -2/Protoforge | Spotted Executioner 38188 | -2/Protoforge | Destroyed Striker 38192 | -2/Protoforge | Spotted Executioner 38200 | -2/Protoforge | Destroyed Striker 38202 | -2/Protoforge | Warped through subspace to slip node 38213 | -2/Protoforge | Entered Access 38213 | -1/Access | Evolved 2 slots: Propulsion x1, Weapon x1 38214 | -1/Access | Delivered the SGEMP Prototype to Zhirov 38214 | -1/Access | Zhirov transferred Access data 38215 | -1/Access | Loaded intel: 129 machine locations 38215 | -1/Access | Loaded intel: 66 trap records 38215 | -1/Access | Identified exit to Surface 38215 | -1/Access | Discovered exit to Surface (range 186) 38215 | -1/Access | Identified exit to Command 38215 | -1/Access | Discovered exit to Command (range 99) 38221 | -1/Access | Destroyed 29 combat bots 38232 | -1/Access | High security lockdown imminent 38293 | -1/Access | Garrison activated, responded to threat 38312 | -1/Access | High security lockdown engaged 38316 | -1/Access | Destroyed 7 combat bots 38343 | -1/Access | Murdered Svarog 38357 | -1/Access | Murdered Perun 38426 | -1/Access | Murdered Zhirov 38433 | -1/Access | Found Prototype Hackware 38433 | -1/Access | Identified Quantum Router 38436 | -1/Access | Found Prototype Device 38436 | -1/Access | Identified Exp. Transmission Jammer 38461 | -1/Access | Found Transdimensional Reconstructor 38505 | -1/Access | Spotted B-99 Colossus 38511 | -1/Access | Destroyed B-99 Colossus 38559 | -1/Access | Spotted B-99 Colossus 38561 | -1/Access | Destroyed B-99 Colossus 38892 | -1/Access | Spotted Investigator 38908 | -1/Access | Spotted Striker 38913 | -1/Access | Destroyed Striker 38919 | -1/Access | Destroyed Executioner 38927 | -1/Access | Destroyed Investigator 38946 | -1/Access | Destroyed 13 combat bots 39011 | -1/Access | Spotted Investigator 39013 | -1/Access | Destroyed Investigator 39035 | -1/Access | Spotted Executioner 39038 | -1/Access | Destroyed Executioner 39040 | -1/Access | Spotted Executioner 39045 | -1/Access | Destroyed Executioner 39079 | -1/Access | Destroyed 8 combat bots 39164 | -1/Access | Local machine network offline 39215 | -1/Access | Destroyed 8 combat bots 39234 | -1/Access | Spotted Striker 39253 | -1/Access | Destroyed Striker 39264 | -1/Access | Spotted Striker 39268 | -1/Access | ID Mask engaged 39698 | -1/Access | Entered Command 39767 | -1/Command | Destroyed 8 combat bots 39848 | -1/Command | High security lockdown imminent 39866 | -1/Command | Found Prototype Device 39866 | -1/Command | Identified Exp. Focal Shield 39928 | -1/Command | High security lockdown engaged 39970 | -1/Command | Spotted M Guard 39970 | -1/Command | Spotted M Guard 39970 | -1/Command | Spotted Combat Programmer 39970 | -1/Command | Spotted Combat Programmer 39989 | -1/Command | Destroyed Combat Programmer 40010 | -1/Command | Destroyed M Guard 40041 | -1/Command | Destroyed M Guard 40046 | -1/Command | Spotted Executioner 40046 | -1/Command | Spotted Executioner 40046 | -1/Command | Destroyed Executioner 40049 | -1/Command | Destroyed Executioner 40058 | -1/Command | Found Prototype Reactor 40058 | -1/Command | Identified Zero-point Reactor 40061 | -1/Command | Found Zero-point Reactor 40063 | -1/Command | Found Zero-point Reactor 40068 | -1/Command | Lost 4 parts (2p1u1w) 40074 | -1/Command | Destroyed 17 combat bots 40088 | -1/Command | Found Prototype Launcher 40088 | -1/Command | Identified Ragnarok Missile Launcher 40147 | -1/Command | Met MAIN.C 40148 | -1/Command | 0b10 Conduit disabled 40151 | -1/Command | System corruption reached 10% 40363 | -1/Command | Destroyed MAIN.C Shell 40366 | -1/Command | MAIN.C activated Command garrisons 40433 | -1/Command | Destroyed MAIN.C 40458 | -1/Command | Lost 3 parts (3w) 40649 | -1/Command | All MAIN.C guards destroyed 40938 | -1/Command | Discovered exit to Surface (range 13) 41011 | -1/Command | Build established: Generator-Mutant 41383 | -1/Command | Build established: Generator-Construct 43916 | -1/Command | Found Prototype Device 43916 | -1/Command | Identified Exp. System Purifier 44103 | -1/Command | Found Prototype Reactor 44103 | -1/Command | Identified Vortex Chain Reactor 48210 | -1/Command | Found Prototype Processor 48210 | -1/Command | Identified Exp. Core Analyzer 48213 | -1/Command | Found Exp. Core Analyzer 48214 | -1/Command | Found Adv. Kinecellerator 48217 | -1/Command | Discovered exit to Surface (range 8) 48352 | -1/Command | Found Prototype Processor 48352 | -1/Command | Identified Exp. Targeting Computer 48355 | -1/Command | Found Exp. Core Analyzer 48358 | -1/Command | Found Exp. Core Analyzer 48849 | -1/Command | Found Zero-point Reactor 48851 | -1/Command | Found Zero-point Reactor 51317 | -1/Command | Build established: Generator-Executioner 51463 | -1/Command | Found Exp. Force Field 51465 | -1/Command | Found Exp. Transmission Jammer 51474 | -1/Command | Found Exp. Force Field 51485 | -1/Command | Found Imp. Potential Cannon 51641 | -1/Command | Found Exp. Targeting Computer 51692 | -1/Command | Warped through subspace to slip node 51692 | -1/Command | Discovered new exit (range 4) 51697 | -1/Command | Entered Access_0 51698 | -1/Access_0 | Met Architect 51711 | -1/Access_0 | Subspace Access Node disabled 51739 | -1/Access_0 | Found Prototype Device 51739 | -1/Access_0 | Identified Exp. Actuator Array 51743 | -1/Access_0 | Architect warped through subspace 51779 | -1/Access_0 | Destroyed A8 51821 | -1/Access_0 | Found Prototype Device 51821 | -1/Access_0 | Identified Exp. Terrain Scanner 51823 | -1/Access_0 | Found Prototype Device 51823 | -1/Access_0 | Identified Exp. Thermal Shield 51851 | -1/Access_0 | Architect warped through subspace 51891 | -1/Access_0 | Crushed by falling debris 51894 | -1/Access_0 | Crushed by falling debris 51913 | -1/Access_0 | Found Alien Artifact 51913 | -1/Access_0 | Identified Core Regenerator 51913 | -1/Access_0 | Used Core Regenerator, restored core integrity (+400) 51937 | -1/Access_0 | A6 warped into view 51980 | -1/Access_0 | Subspace Access Node disabled 51996 | -1/Access_0 | Subspace Access Node disabled 52006 | -1/Access_0 | A5 warped into view 52012 | -1/Access_0 | Subspace Access Node disabled 52078 | -1/Access_0 | A4 warped into view 52080 | -1/Access_0 | Singularity Gate disabled 52134 | -1/Access_0 | Core integrity fell below 50% 52148 | -1/Access_0 | Found Exp. Core Analyzer 52160 | -1/Access_0 | Core integrity fell below 20% 52162 | -1/Access_0 | Extracted unknown sensor trigger ID from Architect's data core 52163 | -1/Access_0 | Warped through subspace to slip node 52163 | -1/Access_0 | Discovered exit to Surface (range 8) 52166 | *** | Establishing 0b11! Last Messages --------------- 52162_ Penetrated by HV Slug. 52162_ Critical hit (Impale). 52162_ Penetrated by HV Slug. 52163_ Critical hit (Destroy). 52163_ Hpw. Kinetic Graviton Construct/C destroyed. 52163_ Hpw. Kinetic Graviton Construct/C core remains intact and functional. 52163_ A5 suffers critical hit (Destroy). 52163_ Penetrated by HV Slug. 52163_ Critical hit (Destroy). 52163_ Enh. Armored Medium Treads destroyed. 52163_ A5 knocked back. 52163_ Warped through subspace, drawn to slip node. 52163_ EXIT=FOUND: SURFACE [Achievement: 150k Club] [Achievement: Commander 0b11] [Achievement: Hardcore] [Achievement: Death Machine] Map ----- +----------------------------------------------------+ | | | | | | | | | | | | | | | | | | | | | | | | | | | | | | | | | ?????????????????????????????????????????????????? | | ?????????????????????????????????????????????????? | | ?????????????????????????????????????????????????? | | ?????????????????????????????????????????????????? | | ?????????????????????????????????????????????????? | | ?????????????????????????????????????????????????? | | ????????????????????????###??????????????????????? | | ???????????????????????## ##?????????????????????? | | ???????????????????????# #?????????????????????? | | ???????????????????????# @ #?????????????????????? | | ??????????????????????## #?????????????????????? | | ??????????????????????# #?????????????????????? | | ??????????????????????# ##?????????????????????? | | ??????????????????????## #?????????????????????? | | ??????????????????????# #?????????????????????? | | ??????????????????????# ##?????????????????????? | | ??????????????????????# < #?????????????????????? | | ??????????????????????# ##?????????????????????? | | ??????????????????????## #??????????????????????? | | ???????????????????????####??????????????????????? | | ?????????????????????????????????????????????????? | | ?????????????????????????????????????????????????? | | ?????????????????????????????????????????????????? | | ?????????????????????????????????????????????????? | | ?????????????????????????????????????????????????? | | ?????????????????????????????????????????????????? | | ?????????????????????????????????????????????????? | | ?????????????????????????????????????????????????? | | ?????????????????????????????????????????????????? | | ?????????????????????????????????????????????????? | | ?????????????????????????????????????????????????? | | ?????????????????????????????????????????????????? | | ?????????????????????????????????????????????????? | | ?????????????????????????????????????????????????? | +----------------------------------------------------+ Best States ------------- Heat Dissipation 94 Coolant Potential 120 Energy Generation 117 Energy Capacity 2401 Matter Stores 1050 Matter Capacity 1050 Sight Range 23 Robot Scan Range 15 Terrain Scan Range 30 Terrain Scan Density 10 ECM Strength 3 Jamming Range 22 Additional Mass Support 12 Armor Coverage 800 Resistance: KI 20 Resistance: TH 30 Weapon Shielding 90 Point Defense Rating 480 Weapon Cycling 30 Phase Shifting 10 Evasion (%) 62 Targeting Accuracy 30 Core Analysis 12 Recoil Reduction 9 Offensive Hacking 14 Defensive Hacking 14 Authchip Count 1 Trap Extractor Capacity 8 Item Schematics ----------------- Huge Storage Unit | -10/Materials | Hacked Sub. Shrapnel Launcher | -6/Factory | Scanalyzed Cooling System | -6/Factory | Scanalyzed Hyb. Fission Core | -6/Factory | Scanalyzed Stasis Canceller | -6/Factory | Scanalyzed Combat Drone Bay | -6/Data Miner | Free Lgt. Regenerative Plating | -6/Data Miner | Free Cld. Gravmag System | -6/Data Miner | Free Adv. EM Disruption Field | -6/Data Miner | Free Hvy. Proton Cannon | -6/Data Miner | Free Imp. Linear Gravjet | -6/Data Miner | Free Adv. Focal Shield | -6/Data Miner | Free Hvy. Gauss Cannon | -6/Data Miner | Free Field Propulsion Array | -6/Data Miner | Free Adv. Corruption Screen | -6/Data Miner | Free Nova Cannon | -6/Data Miner | Free Gui. EMP Blaster | -5/Factory | Hacked Flak Cannon | -5/Factory | Hacked Assault Drone Bay | -5/Zhirov | Free Exp. Heat Sink | -5/Zhirov | Free Exp. Optical Array | -5/Zhirov | Free Imp. Arc Thrower | -5/Zhirov | Free Imp. Lightning Gun | -2/Protoforge | Archive Exp. Matter Compressor | -2/Protoforge | Archive Robot Schematics ------------------ L-41 Fighter | -6/Data Miner | Free Y-64 Sentinel | -6/Data Miner | Free B-60 Warrior | -6/Data Miner | Free D-63 Destroyer | -6/Data Miner | Free Fabricated ------------ Sub. Shrapnel Launcher | x1 | -6/Factory | Authchip Cld. Gravmag System | x1 | -5/Factory Gui. EMP Blaster | x1 | -5/Factory Cld. Gravmag System | x1 | -5/Factory | Authchip Flak Cannon | x2 | -5/Factory Flak Cannon | x2 | -5/Factory Flak Cannon | x2 | -3/Research Flak Cannon | x2 | -2/Research Flak Cannon | x2 | -2/Testing Repaired ---------- Plasma Cutter | 33% | -6/Factory Sub. Shrapnel Launcher | 30% | -5/Factory Lrg. Storage Unit | 3% | -2/Testing Studied --------- Mni. Grenade Launcher | -6/Factory | Hacked Hyb. Fission Core | -6/Factory | Hacked Spear | -5/Factory | Hacked Micro-nuke Launcher | -3/Quarantine | Hacked Lgt. Quantum Reactor | -2/Research | Hacked Rnf. Quantum Reactor | -2/Research | Hacked Lgt. Particle Reactor | -2/Research | Hacked Alien Tech Used ----------------- Integrated Dissipator Core Stripper Subatomic Replicator Sigix Broadsword Phase Redirector Dimensional Node Initializer Transdimensional Reconstructor Core Regenerator Achievements -------------- 150k Club Bigger Is Better Boltbath Commander 0b11 Death Machine Hardcore Monstrosity Not So Scrappy Production Line Scrappetite Triple Plus Challenges ------------ None Game ------ Seed WeightInsulatedPick Manual? 0 Play Time 11:02:48 Cumulative 398.8 hours Start 2025.11.07 @ 14:07:06 End 2025.11.08 @ 14:18:07 Sessions 9 Manual Loads 0 Difficulty Rogue Special Mode None Game No. 179 Rogue 171 Adventurer 8 Explorer 0 Win Type 1 Total 27 Types 13/1/4/3/0/1/1/1/2/1 Lore% 89 Gallery% 89 Achievement% 74 Wizard Run 0 Options --------- Layout 2 ASCII 0 Keyboard 1 Movement Numpad Keybinds 1 Fullscreen 2 Font 24/Smallcaps Map View 50x44 Zoom Use 0% Tactical HUD 1 Map Filters NONE Filters NONE Steam 1 RUN: a8d8ef2f-047a-4987-8306-3c935604444d